Cogmind - Beta 11 X7 @@@ ROGUE MODE // 2021.09.30 @ 18:18:01 Player: Warlord Bad Hover Result: Destroyed by Architect with Modified Quantum Sheargun Performance ------------- Evolutions (9) 4500 Regions Visited (36) 7200 Robots Destroyed (262) 1310 Value Destroyed (10763) 10763 Prototype IDs (167) 3340 Alien Tech Used (9) 1800 Bonus (27675) 27675 TOTAL SCORE: 56588 Bonus ------- High Alert Combat Kills 715 Follower Combat Kills 790 Network Hubs Disabled 400 Aligned with FarCom 300 Met Data Miner 300 Met Zhirov 300 Met Warlord at Base 500 MAIN.C Attacked Warlord 500 Found Hidden Lab 3000 Hacked Protovariant 500 Met Warlord at Research 2000 Destroyed MAIN.C Guards 500 Met MAIN.C 5000 Destroyed MAIN.C Shell 5000 Destroyed MAIN.C 10000 Met Warlord at Command 2000 Met Architect 300 Destroyed A8 300 Destroyed A6 400 Destroyed A5 500 Destroyed A4 700 Friendly Fire -6330 Cogmind --------- Core Integrity 0/1600 Matter 295/300 Energy 127/135 System Corruption 1% Temperature Cool (0) Movement Hovering (121) Ox1 Location -1/Access_0 Parts ------- > --- POWER (2) -------- Compact Particle Reactor > --- PROPULSION (8) --- Combat Antigrav System Experimental Gyrokinetic Inverter > --- UTILITY (12) ----- High-capacity Storage Unit Experimental Melee Analysis Suite > --- WEAPON (4) ------- Vibroblade > --- INVENTORY (22) --- Combat Antigrav System Cooled Field Propulsion Drive Diametric Drive Improved Diametric Drive Improved Diametric Drive Improved Diametric Drive Improved Diametric Drive Experimental Power Amplifier Microactuators Hypervelocity Multirail Ionic Axe Peak State ------------ > --- POWER ------------ Vortex Chain Reactor > --- PROPULSION ------- Cooled Antigrav System Combat Antigrav System Combat Antigrav System Combat Antigrav System Combat Linear Gravjet Combat Linear Gravjet Combat Linear Gravjet Combat Linear Gravjet > --- UTILITY ---------- High-capacity Storage Unit Dimensional Manipulator Experimental Melee Analysis Suite Femtoactuators Advanced Reaction Control System Advanced Phase Shifter SHELL Armor Advanced Force Field Matter Drive > --- WEAPON ----------- Hypervelocity Multirail Vibroblade Vibroblade Nanosword > --- INVENTORY -------- Mini Fusion Reactor Mini Fusion Reactor Zero-point Reactor Combat Antigrav System Combat Antigrav System Combat Antigrav System Microactuators Microactuators Microactuators Experimental Actuator Array Advanced Reaction Control System Advanced Reaction Control System Advanced Reaction Control System Advanced Phase Shifter Advanced Phase Shifter Advanced Phase Shifter Improved Weapon Shielding Beam Splitter Warp Cannon Nanosword [Rating: 255] Favorites ----------- Power Vortex Chain Reactor Engine Cooled Ion Engine Power Core Micro Fission Core Reactor Vortex Chain Reactor Propulsion Combat Linear Gravjet Treads Light Treads Leg Aluminum Leg Wheel Wheel Hover Unit Combat Linear Gravjet Flight Unit Biomechanical Wings Utility Experimental Melee Analysis Suite Device Experimental Heat Sink Storage Medium Storage Unit Processor Experimental Melee Analysis Suite Hackware Deep Network Scanner Protection Experimental Utility Shielding Artifact Matter Drive Weapon Nanosword Energy Gun Backup Laser III Energy Cannon Cooled Plasma Cannon Ballistic Gun Light Assault Rifle Ballistic Cannon Flak Cannon Launcher Mini Grenade Launcher Special Weapon Enhanced Flamer Impact Weapon Power Maul Slashing Weapon Nanosword Piercing Weapon Spear Special Melee Weapon Dirty Datajack Build | -11 -10 -10 -9 -9 -9 -8 -8 -8 -7 -7 -7 -7 -6 -6 -6 -6 -6 -6 -5 -5 -5 -5 -4 -4 -4 -4 -3 -3 -3 -3 -2 -2 -2 -1 -1 -1 ------- Run | Scr Mat Min Mat Min Exi Min Mat Sto Fac Low Low Dat Pro Fac Ext Cet Arc Hub Fac Upp Upp Zhi Pro Fac Upp War Pro Res Arm Lab Res Tes Sec Acc Com Ac0 Slots Evolved 18 | . . . 2 . . . 2 . 2 . . . . 2 . . . . 2 . . . . 2 . . . 2 . . 2 . . 2 . . Power . | . . . . . . . . . . . . . . . . . . . . . . . . . . . . . . . . . . . . . Propulsion 6 | . . . . . . . . . 2 . . . . . . . . . . . . . . 2 . . . 2 . . . . . . . . Utility 10 | . . . . . . . 2 . . . . . . 2 . . . . 2 . . . . . . . . . . . 2 . . 2 . . Weapon 2 | . . . 2 . . . . . . . . . . . . . . . . . . . . . . . . . . . . . . . . . Parts Attached 534 | 3 8 23 26 2 14 18 14 47 19 7 3 3 1 6 8 . 3 3 20 . . 6 2 6 1 12 1 7 10 5 11 19 33 36 76 81 Power 54 | . . 5 4 . 1 1 1 3 2 . . . 1 . 2 . . . 1 . . . . . . . . . 1 . 2 6 4 7 4 9 Engine 18 | . . 5 4 . 1 1 . 3 1 . . . 1 . 1 . . . . . . . . . . . . . . . . . 1 . . . Core 5 | . . . . . . . 1 . 1 . . . . . 1 . . . 1 . . . . . . . . . . . . . 1 . . . Reactor 31 | . . . . . . . . . . . . . . . . . . . . . . . . . . . . . 1 . 2 6 2 7 4 9 Propulsion 119 | . . 10 9 2 2 6 6 15 4 1 . . . 1 2 . . 3 5 . . 3 . 5 . . 1 4 . . . . . 9 9 22 Treads 33 | . . 2 6 2 2 2 6 13 . . . . . . . . . . . . . . . . . . . . . . . . . . . . Leg 11 | . . 8 3 . . . . . . . . . . . . . . . . . . . . . . . . . . . . . . . . . Wheel 1 | . . . . . . 1 . . . . . . . . . . . . . . . . . . . . . . . . . . . . . . Hover 40 | . . . . . . . . . . . . . . . . . . . . . . . . . . . . . . . . . . 9 9 22 Flight 34 | . . . . . . 3 . 2 4 1 . . . 1 2 . . 3 5 . . 3 . 5 . . 1 4 . . . . . . . . Utility 221 | 2 5 3 5 . 3 2 4 6 5 3 . 1 . 4 3 . 3 . 6 . . 2 . 1 1 7 . 3 3 3 6 7 25 14 51 43 Device 129 | 1 1 1 2 . 1 1 . 1 1 1 . 1 . . 1 . 3 . 2 . . 1 . . 1 5 . . . 2 3 4 18 7 36 35 Storage 15 | . 3 1 1 . 2 1 1 . 1 . . . . . . . . . . . . . . . . . . . . . 1 1 . . 3 . Processor 20 | 1 1 1 2 . . . 1 . . 1 . . . . . . . . 1 . . . . . . 2 . . . . . 1 1 2 . 6 Hackware 16 | . . . . . . . 1 2 . . . . . 3 . . . . 1 . . . . 1 . . . 1 1 1 1 1 . 2 1 . Protection 36 | . . . . . . . 1 3 3 1 . . . 1 2 . . . 2 . . 1 . . . . . 2 2 . 1 . 4 2 9 2 Artifact 5 | . . . . . . . . . . . . . . . . . . . . . . . . . . . . . . . . . 2 1 2 . Weapon 140 | 1 3 5 8 . 8 9 3 23 8 3 3 2 . 1 1 . . . 8 . . 1 2 . . 5 . . 6 2 3 6 4 6 12 7 Energy Gun 9 | . 2 1 . . . . . 2 . . . . . . . . . . 3 . . 1 . . . . . . . . . . . . . . Energy Cannon 10 | . . . . . . . 1 4 . . . . . . . . . . . . . . . . . 1 . . 2 1 . . . . . 1 Ballistic Gun 51 | 1 . 4 7 . 6 6 2 12 2 . . . . . . . . . 3 . . . 1 . . . . . 4 1 . . . . 1 1 Ballistic Cannon 5 | . . . . . . . . 5 . . . . . . . . . . . . . . . . . . . . . . . . . . . . Launcher 9 | . . . 1 . 2 2 . . 1 1 . . . . 1 . . . . . . . . . . 1 . . . . . . . . . . Special Weapon 7 | . 1 . . . . . . . . . . . . 1 . . . . . . . . . . . 3 . . . . . . . . 2 . Impact Weapon 1 | . . . . . . . . . 1 . . . . . . . . . . . . . . . . . . . . . . . . . . . Slashing Weapon 37 | . . . . . . 1 . . . 2 . . . . . . . . 2 . . . 1 . . . . . . . 3 5 4 6 8 5 Piercing Weapon 7 | . . . . . . . . . 3 . 1 1 . . . . . . . . . . . . . . . . . . . 1 . . 1 . Special Melee Weapon 4 | . . . . . . . . . 1 . 2 1 . . . . . . . . . . . . . . . . . . . . . . . . Unidentified Prototypes 40 | . . . . . 1 . . 5 . . . . . 3 . . . . . . . 2 . . . 6 . . 1 2 1 1 4 3 7 4 Corrupted Parts 4 | . . . . . . . . 1 . . . . . . 1 . . 1 . . . . . . . . . . . . . . . . 1 . System Corruption 10 | . . . . . . . . 2 . . . . . . 4 . . 2 . . . . . . . . . . . . . . . . 2 . Parts Lost 88 | . . 2 . . 4 . 1 4 . . . . 2 . 2 . . 8 . . . . . . 1 . 1 4 1 . . 2 7 3 4 42 Power 14 | . . 2 . . . . . 1 . . . . 1 . 1 . . 1 . . . . . . . . . . . . . 1 3 . . 4 Propulsion 25 | . . . . . 1 . . . . . . . . . . . . 5 . . . . . . . . 1 . . . . . 3 . . 15 Utility 30 | . . . . . 1 . . . . . . . 1 . . . . . . . . . . . . . . . 1 . . . 1 3 3 20 Weapon 19 | . . . . . 2 . 1 3 . . . . . . 1 . . 2 . . . . . . 1 . . 4 . . . 1 . . 1 3 Highest Loss Streak 22 | . . 1 . . 4 . 1 1 . . . . 1 . 1 . . 8 . . . . . . 1 . 1 4 1 . . 1 5 2 2 22 Average Slot Usage (%) 93 | . 100 99 100 100 99 82 95 99 93 95 100 96 91 90 94 93 93 73 77 100 100 98 99 96 94 96 96 91 96 98 88 94 95 91 86 86 Engine 4 | . 14 13 11 11 11 11 2 8 . . . . 5 6 4 . . . 2 . . . . . . . . . . . . . . . . . Core 1 | . . . . . . . 6 . 6 7 7 7 . . 1 6 6 4 2 5 5 5 5 5 5 5 5 4 3 . . . 2 . . . Reactor 1 | . . . . . . . . . . . . . . . . . . . . . . . . . . . . . . 4 5 7 2 5 3 5 Treads 6 | . . 9 20 22 22 9 18 17 . . . . . . . . . . . . . . . . . . . . . . . . . . . . Leg 1 | . 28 18 1 . . . . . . . . . . . . . . . . . . . . . . . . . . . . . . . . . Hover 8 | . . . . . . . . . . . . . . . . . . . 1 . . . . . . . . . . . . . . 27 29 28 Flight 9 | . . . . . . 12 . . 29 30 30 30 30 26 26 26 26 17 16 23 23 21 23 28 31 31 27 33 38 38 33 33 32 1 . . Device 9 | . 13 1 2 11 9 15 15 5 1 10 15 11 15 8 . . 5 6 . 5 5 5 5 5 9 14 15 8 . 3 5 4 3 13 18 15 Storage 4 | . 12 7 11 11 11 1 3 9 5 . . . . . . . . . . . . . . . . . . . . . 2 4 4 3 3 3 Processor 4 | . 2 18 8 . . . 5 . . 6 7 7 7 6 6 6 6 6 8 11 11 11 11 10 10 5 5 4 2 . . 1 4 6 3 11 Hackware 9 | . . . . . . . 5 16 16 4 . . . 17 20 20 20 20 20 17 17 17 17 20 16 15 15 14 20 19 19 22 19 12 1 . Protection 5 | . . . . . . . 2 5 6 7 7 7 5 3 12 13 7 6 6 11 11 11 11 5 5 5 5 8 12 14 12 8 7 2 8 4 Energy Gun 1 | . 13 6 . . . . . 1 . . . . . . . . . . 5 5 5 5 5 5 5 2 . . . . . . . . . . Ballistic Gun 11 | . 14 20 43 44 42 16 32 19 2 . . . . . . . . . 7 17 17 17 11 10 5 2 . . 17 14 3 . . . . . Ballistic Cannon 2 | . . . . . . . . 11 . . . . . . . . . . . . . . . . . . . . . . . . . . . . Launcher 1 | . . . . . . 10 2 . 6 7 1 . . . . . . . . . . . . . . . . . . . . . . . . . Slashing Weapon 5 | . . . . . . 4 . . . 6 15 11 7 6 6 6 6 4 . . . . 4 5 5 5 5 3 . . 3 11 15 14 14 14 Piercing Weapon 1 | . . . . . . . . . 12 11 7 13 15 13 13 13 13 6 . . . . . . . . . . . . . . . . . . Naked Turns . | . . . . . . . . . . . . . . . . . . . . . . . . . . . . . . . . . . . . . Heaviest Build 148 | 11 27 17 30 30 36 22 66 74 52 20 20 20 20 18 20 16 16 14 14 14 14 14 18 18 17 27 20 20 34 45 44 48 52 114 148 148 Greatest Support 160 | 20 20 40 40 40 43 43 40 45 20 20 20 20 20 20 20 20 20 20 20 20 20 22 21 34 34 34 35 48 48 48 48 48 48 136 154 160 Greatest Overweight (x) 5 | . 1 . 1 . . 5 1 3 2 . . . . . . . . . . . . . . . . . . . . . . . 1 1 1 1 Average Overweight (x) . | . . . . . . . . 1 . . . . . . . . . . . . . . . . . . . . . . . . . . . . Largest Inventory Capacity 22 | 8 15 10 10 10 10 5 20 20 20 5 5 5 5 5 5 5 5 5 5 5 5 5 5 5 5 5 5 5 5 5 10 10 12 12 22 22 Average Capacity 11 | 7 9 7 10 10 9 5 10 20 7 5 5 5 5 5 5 5 5 5 5 5 5 5 5 5 5 5 5 5 5 5 7 10 10 12 13 22 Most Carried 22 | 6 10 10 10 10 10 5 17 20 19 5 5 5 5 3 5 5 5 4 5 5 5 5 5 5 5 5 5 5 5 5 10 10 12 12 22 22 Average Carried 10 | 5 8 6 9 9 9 4 7 19 6 4 4 4 3 1 2 5 4 3 4 4 5 4 5 4 4 4 4 4 4 3 6 9 9 11 13 19 Final Capacity 22 | 5 10 10 10 10 5 5 20 20 5 5 5 5 5 5 5 5 5 5 5 5 5 5 5 5 5 5 5 5 5 5 10 10 12 12 22 22 Final Carried 21 | 5 10 10 10 10 5 5 16 20 5 5 5 5 3 2 5 5 4 4 4 5 5 5 5 5 4 5 4 4 3 4 10 9 10 12 21 11 Class Distribution -------------------- 22% | Wizard-Sprinter 13% | Scavenger-Mutant 12% | Machinist-Mutant 9% | Scavenger-Tank 7% | Scavenger-Gunner 6% | Machinist-Sprinter 6% | Hacker-Gunner 5% | Hacker-Sprinter 4% | Mutant Dominant Class ---------------- Mutant | -10/Materials Scavenger-Mutant | -10/Mines Scavenger-Gunner | -9/Materials Scavenger-Gunner | -9/Mines Scavenger-Gunner | -9/Exiles Scavenger-Mutant | -8/Mines Scavenger-Gunner | -8/Materials Scavenger-Tank | -8/Storage Hacker-Sprinter | -7/Factory Sprinter | -7/Lower Caves Sprinter | -7/Lower Caves Sprinter | -7/Data Miner Sprinter | -6/Proximity Caves Wizard-Sprinter | -6/Factory Wizard-Sprinter | -6/Extension Wizard-Sprinter | -6/Cetus Wizard-Sprinter | -6/Archives Wizard-Sprinter | -6/Hub_04(d) Wizard-Sprinter | -5/Factory Wizard-Sprinter | -5/Upper Caves Wizard-Sprinter | -5/Upper Caves Wizard-Sprinter | -5/Zhirov Wizard-Sprinter | -4/Proximity Caves Wizard-Sprinter | -4/Factory Wizard-Sprinter | -4/Upper Caves Wizard-Sprinter | -4/Warlord Wizard-Sprinter | -3/Proximity Caves Wizard-Sprinter | -3/Research Wizard-Sprinter | -3/Armory Wizard-Sprinter | -3/Lab Wizard-Sprinter | -2/Research Wizard-Sprinter | -2/Testing Wizard-Sprinter | -2/Section 7 Machinist-Mutant | -1/Access Machinist-Mutant | -1/Command Scavenger-Mutant | -1/Access_0 Resources | -11 -10 -10 -9 -9 -9 -8 -8 -8 -7 -7 -7 -7 -6 -6 -6 -6 -6 -6 -5 -5 -5 -5 -4 -4 -4 -4 -3 -3 -3 -3 -2 -2 -2 -1 -1 -1 ----------- Run | Scr Mat Min Mat Min Exi Min Mat Sto Fac Low Low Dat Pro Fac Ext Cet Arc Hub Fac Upp Upp Zhi Pro Fac Upp War Pro Res Arm Lab Res Tes Sec Acc Com Ac0 Matter Collected 7231 | 255 . 436 541 90 655 290 532 1467 365 14 38 . . . 248 . 26 . 145 75 . . 30 22 52 . 130 12 308 . 210 175 195 180 420 320 Remotely . | . . . . . . . . . . . . . . . . . . . . . . . . . . . . . . . . . . . . . Salvage Created 13756 | 138 . 625 527 90 152 39 608 2087 215 . . 21 17 . 35 . 39 65 145 . . . . 22 . . 70 . 151 . 371 1276 1202 2748 1759 1354 Parts 681 | 16 . 35 48 8 2 6 30 119 20 . . 4 2 . 4 . 3 6 2 . . . . 4 . . 1 . 8 . 8 58 49 119 59 70 Haulers Intercepted 21 | . . . 2 . . . 1 6 . . . . . . . . . . . . . . . . . . . . . . 1 2 4 5 . . Recyclers Shooed 2 | . . . . . . . . . . . . . . . . . . . 1 . . . . . . . . . . . . . . 1 . . Parts Field Recycled . | . . . . . . . . . . . . . . . . . . . . . . . . . . . . . . . . . . . . . Retrieved Matter . | . . . . . . . . . . . . . . . . . . . . . . . . . . . . . . . . . . . . . Parts Self-Destructed 24 | . . . . . . . . . . . . . 2 . . . . . . . . . . . . 21 1 . . . . . . . . . Prevented 10 | . . . . . . . . . . . . . . . . . . . . . . . . . . 5 5 . . . . . . . . . Kills | -11 -10 -10 -9 -9 -9 -8 -8 -8 -7 -7 -7 -7 -6 -6 -6 -6 -6 -6 -5 -5 -5 -5 -4 -4 -4 -4 -3 -3 -3 -3 -2 -2 -2 -1 -1 -1 ------- Run | Scr Mat Min Mat Min Exi Min Mat Sto Fac Low Low Dat Pro Fac Ext Cet Arc Hub Fac Upp Upp Zhi Pro Fac Upp War Pro Res Arm Lab Res Tes Sec Acc Com Ac0 Combat Hostiles Destroyed 166 | . . 19 14 2 4 3 8 29 5 . . . 1 . 2 . . . . . . . . . . . 2 . . . . 8 9 31 14 15 Melee 76 | . . . . . . . . . 2 . . . . . . . . . . . . . . . . . . . . . . 8 9 31 14 12 Guns 69 | . . 19 11 2 2 3 7 22 . . . . . . . . . . . . . . . . . . . . . . . . . . . 3 Cannons 7 | . . . . . . . 1 5 . . . . . . . . . . . . . . . . . . 1 . . . . . . . . . AOE 13 | . . . 3 . 2 . . 2 3 . . . 1 . 2 . . . . . . . . . . . . . . . . . . . . . Classes Destroyed 22 | 2 . 3 4 1 . . 3 2 2 . . . . . . . . . . . . . . . . . . . 1 . 1 1 . . 2 . Worker 13 | . . . . . . . 1 3 1 . . . . . . . . 1 . . . . . . . . . . . . . 1 . 1 5 . Builder 9 | . . . 1 . . . . . 2 . . . . . . . . 1 . . . . . 1 . . . . . . . . 3 1 . . Tunneler 8 | 5 . 1 1 . . . . . . . . . . . . . . . . . . . . . . . . . . . . . . 1 . . Hauler 21 | . . . 2 . . . 1 6 . . . . . . . . . . . . . . . . . . . . . . 1 2 4 5 . . Recycler 10 | 1 . . . . . . 1 4 . . . . . . . . . . 1 . . . . . . . . . . . 1 . . 1 1 . Mechanic 1 | . . . . . . . . 1 . . . . . . . . . . . . . . . . . . . . . . . . . . . . Operator 7 | . . . . . . . 1 2 . . . . . . . . 1 . . . . . . . . . . . . . . . . 2 1 . Watcher 19 | . . . 3 . . . 1 2 . . . . . . . . . 1 . . . . . . . . . . . . . 2 4 5 1 . Swarmer 44 | . . 6 10 . . 3 . 6 2 . . . 1 . 2 . . . . . . . . . . . . . . . . . . 12 2 . Cutter 5 | . . . . . . . . 1 . . . . . . . . . . . . . . . . . . . . . . . . 4 . . . Grunt 43 | . . 12 1 1 . . 4 15 . . . . . . . . . . . . . . . . . . . . . . . 4 . 5 1 . Brawler 2 | . . . . 1 . . 1 . . . . . . . . . . . . . . . . . . . . . . . . . . . . . Duelist 1 | . . . . . . . . . 1 . . . . . . . . . . . . . . . . . . . . . . . . . . . Researcher 2 | . . . . . . . . . . . . . . . . . . . . . . . . . . . . . . . . 1 1 . . . Sentry 17 | . . . 3 . . . 2 8 . . . . . . . . . . . . . . . . . . 1 . . . . . 2 1 . . Specialist 2 | . . . . . . . . . . . . . . . . . . . . . . . . . . . . . 2 . . . . . . . Hunter 10 | . . . . . . . 1 1 . . . . . . . . . . . . . . . . . . . . . . . 1 . 4 3 . Programmer 22 | . . . . . . . . . 2 . . . . . . . . . . . . . . . . . 1 . . . . 3 3 9 4 . Heavy 1 | . . . . . . . . . . . . . . . . . . . . . . . . . . . . . . . . . . . 1 . Enhanced Grunt 8 | . . . . . . . . . . . . . . . . . . . . . . . . . . . . . . . . . . . . 8 Enhanced Hunter 4 | . . . . . . . . . . . . . . . . . . . . . . . . . . . . . . . . . . . . 4 Combat Programmer 1 | . . . . . . . . . . . . . . . . . . . . . . . . . . . . . . . . . . . 1 . Alpha 7 1 | . . . . . . . . . . . . . . . . . . . . . . . . . . . . . . . . . . . 1 . Assembled 8 | . . 1 . . 7 . . . . . . . . . . . . . . . . . . . . . . . . . . . . . . . Thug 1 | . . . . . . . . . . . . . . . . . . . . . . . . . . . . . . . . 1 . . . . Savage 1 | . . . . . . . . . . . . . . . . . . . . . . . . . . . . . . . . 1 . . . . Butcher 2 | . . . . . . . . . . . . . . . . . . . . . . . . . . . . . . . . 2 . . . . Knight 1 | . . . . . . . . . . . . . . . . . . . . . . . . . . . . . . . 1 . . . . . Best Kill Streak 7 | 4 . 3 5 2 3 3 6 4 3 . . 1 1 . 2 . 1 3 1 . . . . 1 . . 1 . . . 1 4 4 7 4 3 Combat Bots Only 6 | . . 3 4 2 3 3 3 4 3 . . . 1 . 2 . . . . . . . . . . . 1 . . . . 3 4 6 3 3 Max Kills in Single Turn 4 | 1 . 1 2 1 4 1 2 3 1 . . 1 1 . 1 . 1 3 1 . . . . 1 . . 1 . 1 . 1 1 1 1 1 1 Gunslinging 2 | . . . . . . . . 2 . . . . . . . . . . . . . . . . . . . . . . . . . . . . Exploded 2 | . . . 2 . 2 . . 2 1 . . . 1 . 1 . . . . . . . . . . . . . . . . . . . . . Melee 1 | . . . . . . . . . 1 . . . . . . . . . . . . . . . . . . . . . . 1 1 1 1 1 Uniques/NPCs Destroyed 6 | . . . . . 1 . . . . . . 1 . . . . . . . . . . . . . . . . . . . . . . 1 3 8R-AWN (-9/Exiles) Data Miner (-7/Data Miner) MAIN.C (-1/Command) A8 (-1/Access_0) A6 (-1/Access_0) A5 (-1/Access_0) Combat | -11 -10 -10 -9 -9 -9 -8 -8 -8 -7 -7 -7 -7 -6 -6 -6 -6 -6 -6 -5 -5 -5 -5 -4 -4 -4 -4 -3 -3 -3 -3 -2 -2 -2 -1 -1 -1 -------- Run | Scr Mat Min Mat Min Exi Min Mat Sto Fac Low Low Dat Pro Fac Ext Cet Arc Hub Fac Upp Upp Zhi Pro Fac Upp War Pro Res Arm Lab Res Tes Sec Acc Com Ac0 Damage Taken 22491 | . . 779 151 45 867 75 358 1255 157 . . 136 274 20 227 62 . 598 152 . 19 . 109 159 139 . 69 241 189 . 39 481 1000 1454 2210 11226 Core 2896 | . . 161 21 11 106 32 44 138 21 . . . 67 20 44 . . 167 37 . . . 14 . 54 . . 48 43 . . 107 202 135 41 1383 Absorbed by Shields 2071 | . . . . . . . . . . . . . . . 33 . . . . . . . . . . . . . . . . . . 287 854 897 Core Remaining (%) 77 | 100 . 35 . . . 57 . 66 . . . . 87 . . . . 72 . . . . 94 . . . 95 . . 86 . . 78 . . . Volleys Fired 354 | 11 4 65 28 3 36 4 31 85 14 . . . . . 3 . . . 13 . . . . 1 . . 5 . 33 6 . . . . 4 8 Largest 4 | 2 2 2 4 4 4 4 4 4 2 . . . . . 1 . . . 4 . . . . 1 . . 3 . 4 1 . . . . 1 1 Hottest 240 | 60 100 70 92 92 92 92 131 176 40 . . . . . 39 . . . 100 . . . . 20 . . 240 . 120 120 . . . . 20 50 Shots Fired 1057 | 22 5 130 102 12 114 16 119 317 23 . . . . . 3 . . . 40 . . . . 1 . . 15 . 120 6 . . . . 4 8 Gun 936 | 22 2 130 99 12 104 16 118 250 18 . . . . . . . . . 40 . . . . 1 . . . . 116 . . . . . . 8 Cannon 78 | . . . . . . . 1 67 . . . . . . . . . . . . . . . . . . . . 4 6 . . . . . . Launcher 21 | . . . 3 . 10 . . . 5 . . . . . 3 . . . . . . . . . . . . . . . . . . . . . Special 22 | . 3 . . . . . . . . . . . . . . . . . . . . . . . . . 15 . . . . . . . 4 . Kinetic 899 | 11 1 102 99 12 104 16 118 266 18 . . . . . . . . . 27 . . . . 1 . . . . 116 . . . . . . 8 Thermal 127 | 11 4 28 . . . . 1 43 . . . . . . . . . . 13 . . . . . . . 15 . 2 6 . . . . 4 . Explosive 18 | . . . 3 . 10 . . . 5 . . . . . . . . . . . . . . . . . . . . . . . . . . . Electromagnetic 11 | . . . . . . . . 8 . . . . . . 3 . . . . . . . . . . . . . . . . . . . . . Entropic 2 | . . . . . . . . . . . . . . . . . . . . . . . . . . . . . 2 . . . . . . . Robot Hit Streak 29 | 5 1 29 7 10 19 2 15 15 3 . . . . . 1 . . . 11 . . . . . . . 7 . 12 . . . . . 1 3 Robot Miss Streak 10 | 3 1 4 4 2 3 4 2 10 3 . . . . . . . . . 5 . . . . . . . 1 . 3 . . . . . 1 5 Penetration Max 2 | . . . . . . . . 1 . . . . . . . . . . . . . . . . . . . . . . . . . . . 2 Secondary Targets 12 | . . 1 2 1 . 2 2 4 . . . . . . . . . . . . . . . . . . . . . . . . . . . . Max Gunslinging Chain 2 | . . 1 1 1 . 1 1 2 . . . . . . . . . . . . . . . . . . . . . . . . . . . . Shots Hit Robots 1493 | 13 1 101 48 7 83 5 75 199 19 . . 1 5 . 1 . 1 . 29 . . . . 1 . . 13 . 84 . 7 47 54 157 176 366 Core Hits 556 | 7 1 40 30 4 28 3 28 108 13 . . 1 2 . 4 . 1 6 8 . . . . 1 . . 4 . 21 . 3 22 22 52 45 102 Critical Kills 6 | . . 1 . . . . 1 1 . . . . . . . . . . . . . . . . . . . . . . . . . . . 3 Critical Parts Destroyed 10 | 1 . . . . 1 . . 1 . . . . . . . . . . 1 . . . . . . . . . 1 . . . . . . 5 Critical Strikes 42 | 1 . 2 . . 1 . 1 5 3 . . . . . . . . . 1 . . . . . . . . . 1 . . 2 3 4 5 13 Burn 4 | . . 1 . . . . . 3 . . . . . . . . . . . . . . . . . . . . . . . . . . . . Destroy 16 | 1 . 1 . . 1 . 1 2 . . . . . . . . . . 1 . . . . . . . . . 1 . . . . . . 8 Sever 18 | . . . . . . . . . . . . . . . . . . . . . . . . . . . . . . . . 1 3 4 5 5 Puncture 4 | . . . . . . . . . 3 . . . . . . . . . . . . . . . . . . . . . . 1 . . . . Melee Attacks 1085 | . . . . . . . . . 26 1 . 5 6 1 1 . 9 2 5 . . . . 9 2 2 . 4 . . 9 81 93 212 231 386 Impact 3 | . . . . . . . . . 3 . . . . . . . . . . . . . . . . . . . . . . . . . . . Slashing 1033 | . . . . . . . . . . . . . . . . . 1 1 5 . . . . 9 2 2 . 4 . . 9 78 93 212 231 386 Piercing 45 | . . . . . . . . . 19 1 . 5 6 1 1 . 8 1 . . . . . . . . . . . . . 3 . . . . Sneak Attacks 66 | . . . . . . . . . 7 . . 1 . . . . 1 . . . . . . 1 . . . . . . 4 15 14 15 8 . Combat Hostiles 4 | . . . . . . . . . 2 . . . . . . . . . . . . . . . . . . . . . . 1 . 1 . . Follow-up Attacks 333 | . . . . . . . . . 1 . . . . . . . . . . . . . . . . . . . . . . 10 17 74 88 143 Damage Inflicted 64843 | 144 11 1044 997 99 1633 102 1040 3127 631 . . 113 11 . 353 . 111 646 331 . . . . 129 . . 163 . 688 . 865 4274 5229 11012 12583 19507 Guns 7644 | 144 11 1022 637 99 1219 102 1003 2281 61 . . . . . . . . . 276 . . . . . . . . . 688 . . . . . . 101 Cannons 779 | . . . . . . . 26 753 . . . . . . . . . . . . . . . . . . . . . . . . . . . . Explosions 1954 | . . . 340 . 392 . . 52 171 . . . . . 353 . . 646 . . . . . . . . . . . . . . . . . . Melee 54183 | . . . . . . . . . 399 . . 113 11 . . . 111 . 55 . . . . 129 . . . . . . 865 4274 5229 11012 12579 19406 Ramming 116 | . . 22 20 . 22 . 11 41 . . . . . . . . . . . . . . . . . . . . . . . . . . . . Kinetic 7456 | 55 11 747 637 99 1219 102 1003 2590 61 . . . . . . . . . 143 . . . . . . . . . 688 . . . . . . 101 Thermal 1372 | 89 . 275 . . . . 26 442 . . . . . . 240 . . . 133 . . . . . . . 163 . . . . . . . 4 . Explosive 903 | . . . 340 . 392 . . . 171 . . . . . . . . . . . . . . . . . . . . . . . . . . . Electromagnetic 813 | . . . . . . . . 54 . . . . . . 113 . . 646 . . . . . . . . . . . . . . . . . . Impact . | . . . . . . . . . . . . . . . . . . . . . . . . . . . . . . . . . . . . . Slashing 53473 | . . . . . . . . . . . . . . . . . . . 55 . . . . 129 . . . . . . 865 4198 5229 11012 12579 19406 Piercing 710 | . . . . . . . . . 399 . . 113 11 . . . 111 . . . . . . . . . . . . . . 76 . . . . Highest Corruption 9 | . 1 1 . . . . . 3 4 4 4 4 4 . 4 4 4 9 . . . . . . . . . . . . . 1 2 4 4 1 Average Corruption 1 | . 1 1 . . . . . 2 3 4 4 4 4 . 4 4 2 4 . . . . . . . . . . . . . 1 1 3 1 1 Corruption Purged 11 | . . . . . . . . . . . . . . . . . 4 . . . . . . . . . . . . . . . . . 7 . Effects 83 | . . 8 . . . . . 36 5 3 4 2 3 . 4 1 . . . . . . . . . . . . . . . 1 2 3 7 4 Message Errors 30 | . . 2 . . . . . 16 . 2 1 . 1 . 1 . . . . . . . . . . . . . . . . 1 1 . 4 1 Matter Fused 11 | . . . . . . . . 3 1 1 . 1 2 . 1 1 . . . . . . . . . . . . . . . . . . 1 . Heat Flow Errors 10 | . . . . . . . . 5 2 . 2 . . . . . . . . . . . . . . . . . . . . . . 1 . . Energy Discharges 18 | . . 1 . . . . . 8 1 . . 1 . . 1 . . . . . . . . . . . . . . . . . 1 1 2 2 Data Loss (minor) 14 | . . 5 . . . . . 4 1 . 1 . . . 1 . . . . . . . . . . . . . . . . . . 1 . 1 Overload Shots . | . . . . . . . . . . . . . . . . . . . . . . . . . . . . . . . . . . . . . Overflow Damage 5205 | . . . 52 . . . . 1 69 . . . . . 49 . . 110 5 . . . . . . . . . . . 159 722 1019 1548 1015 456 Projectiles 1 | . . . . . . . . 1 . . . . . . . . . . . . . . . . . . . . . . . . . . . . Explosions 211 | . . . 52 . . . . . . . . . . . 49 . . 110 . . . . . . . . . . . . . . . . . . Melee 4993 | . . . . . . . . . 69 . . . . . . . . . 5 . . . . . . . . . . . 159 722 1019 1548 1015 456 Knockbacks 25 | . . . . . . . . 25 . . . . . . . . . . . . . . . . . . . . . . . . . . . . Impact . | . . . . . . . . . . . . . . . . . . . . . . . . . . . . . . . . . . . . . Kinetic 24 | . . . . . . . . 24 . . . . . . . . . . . . . . . . . . . . . . . . . . . . Secondary 1 | . . . . . . . . 1 . . . . . . . . . . . . . . . . . . . . . . . . . . . . Self-Inflicted Damage 145 | . . . . . . . . 36 . . . . . . . . . 109 . . . . . . . . . . . . . . . . . . Shots 2 | . . . . . . . . 1 . . . . . . . . . 1 . . . . . . . . . . . . . . . . . . Rammed 27 | . . 5 7 . 5 . 3 7 . . . . . . . . . . . . . . . . . . . . . . . . . . . . Targets Rammed 33 | 1 . 7 8 . 5 . 3 9 . . . . . . . . . . . . . . . . . . . . . . . . . . . . Kicked 3 | 1 . 2 . . . . . . . . . . . . . . . . . . . . . . . . . . . . . . . . . . Crushed 3 | . . . 1 . . . . 2 . . . . . . . . . . . . . . . . . . . . . . . . . . . . Highest Temperature 320 | 20 60 78 148 42 188 . . 273 127 . 188 . 9 14 1 1 . 3 162 . . . . 52 . . 178 . 46 46 . . . 320 292 4 Average Temperature 42 | 15 30 22 47 22 71 . . 95 37 . 82 . 9 7 1 1 . 3 60 . . . . 4 . . 90 . 6 14 . . . 33 41 2 Received Heat Transfer 1903 | . . 431 24 18 . 9 180 558 27 . . 18 12 27 32 9 . 21 72 . . . . 82 18 . . 18 21 . . 9 18 89 72 138 Effects 1 | . . . . . . . . . . . . . . . . . . . . . . . . . . . . . . . . . . 1 . . Energy Bleed 1 | . . . . . . . . . . . . . . . . . . . . . . . . . . . . . . . . . . 1 . . Siege Activations . | . . . . . . . . . . . . . . . . . . . . . . . . . . . . . . . . . . . . . Robots Corrupted . | . . . . . . . . . . . . . . . . . . . . . . . . . . . . . . . . . . . . . Combat Hostiles . | . . . . . . . . . . . . . . . . . . . . . . . . . . . . . . . . . . . . . Parts Fried 3 | . . . . . . . . . . . . . . . . . . 2 . . . . . . . . . . . . . . 1 . . . Impact Corruptions . | . . . . . . . . . . . . . . . . . . . . . . . . . . . . . . . . . . . . . Robots Melted 1 | . . . . . . . . . . . . . . . . . . . . . . . . . . . 1 . . . . . . . . . Combat Hostiles 1 | . . . . . . . . . . . . . . . . . . . . . . . . . . . 1 . . . . . . . . . Parts Melted 3 | . . 2 . . . . . . . . . . . . . . . . 1 . . . . . . . . . . . . . . . . . Heat Transferred 3804 | 200 . 888 . . . . 37 1051 . . . . . . 200 . . . 370 . . . . . . . 1040 . . . . . . . 18 . Parts Sabotaged . | . . . . . . . . . . . . . . . . . . . . . . . . . . . . . . . . . . . . . Parts Stolen . | . . . . . . . . . . . . . . . . . . . . . . . . . . . . . . . . . . . . . Parts Stripped . | . . . . . . . . . . . . . . . . . . . . . . . . . . . . . . . . . . . . . Power Chain Reactions 2 | . . . . . . . . 1 . . . . . . 1 . . . . . . . . . . . . . . . . . . . . . Missiles Intercepted 13 | . . . . . . . . . . . . . . . . . . . . . . . . . . . . . . . . . . . 13 . Alert | -11 -10 -10 -9 -9 -9 -8 -8 -8 -7 -7 -7 -7 -6 -6 -6 -6 -6 -6 -5 -5 -5 -5 -4 -4 -4 -4 -3 -3 -3 -3 -2 -2 -2 -1 -1 -1 ------- Run | Scr Mat Min Mat Min Exi Min Mat Sto Fac Low Low Dat Pro Fac Ext Cet Arc Hub Fac Upp Upp Zhi Pro Fac Upp War Pro Res Arm Lab Res Tes Sec Acc Com Ac0 Peak Influence 1107 | 30 70 212 231 129 . 70 236 285 405 . . . . 30 414 15 50 480 684 . . . . 206 . . . 308 273 . 565 1041 345 1107 844 . Initial 535 | . 19 27 33 79 . . . 44 89 . . . . 6 14 . . 17 205 . . . . 9 . . . . 90 . . 317 96 30 535 . Average 199 | 16 48 79 125 127 . 43 78 153 279 . . . . 15 70 5 19 295 322 . . . . 137 . . . 52 136 . 177 450 181 317 576 . Maximum Alert Level 4 | . . 1 1 . . . 1 1 2 . . . . . 2 . . 2 2 . . . . 1 . . . 1 1 . 2 3 1 4 3 . Low Security (%) 56 | 100 100 94 77 100 . 100 89 81 16 . . . . 100 88 100 100 37 6 . . . . 98 . . . 94 72 . 71 27 61 59 . . Level 1 15 | . . 5 22 . . . 10 18 68 . . . . . 10 . . . 63 . . . . 1 . . . 5 27 . . 16 38 11 . . Level 2 25 | . . . . . . . . . 14 . . . . . . . . 62 30 . . . . . . . . . . . 28 41 . 10 93 . Level 3 2 | . . . . . . . . . . . . . . . . . . . . . . . . . . . . . . . . 15 . 16 6 . Level 4 . | . . . . . . . . . . . . . . . . . . . . . . . . . . . . . . . . . . 1 . . Level 5 . | . . . . . . . . . . . . . . . . . . . . . . . . . . . . . . . . . . . . . High Security . | . . . . . . . . . . . . . . . . . . . . . . . . . . . . . . . . . . . . . Max Security . | . . . . . . . . . . . . . . . . . . . . . . . . . . . . . . . . . . . . . Squads Dispatched 66 | . 1 . 2 . . . 1 9 11 . . . . . . . . 3 2 . . . . 4 . . . 2 6 . 1 5 4 5 10 . Investigation 16 | . 1 . . . . . . 3 5 . . . . . . . . 2 1 . . . . . . . . . 2 . 1 . . . 1 . Extermination 13 | . . . . . . . . . 2 . . . . . . . . . 1 . . . . 1 . . . 1 . . . 2 1 1 4 . Reinforcement 26 | . . . 2 . . . 1 5 1 . . . . . . . . 1 . . . . . . . . . 1 4 . . 1 3 2 5 . Assault 4 | . . . . . . . . . . . . . . . . . . . . . . . . . . . . . . . . 2 . 2 . . Garrison 7 | . . . . . . . . 1 3 . . . . . . . . . . . . . . 3 . . . . . . . . . . . . Intercept . | . . . . . . . . . . . . . . . . . . . . . . . . . . . . . . . . . . . . . Construction Impeded . | . . . . . . . . . . . . . . . . . . . . . . . . . . . . . . . . . . . . . Haulers Reinforced 2 | . . . . . . . . . . . . . . . . . . . . . . . . . . . . . . . . . 1 1 . . Active Scanning Responses . | . . . . . . . . . . . . . . . . . . . . . . . . . . . . . . . . . . . . . Cargo Convoy Interrupts . | . . . . . . . . . . . . . . . . . . . . . . . . . . . . . . . . . . . . . Stealth | -11 -10 -10 -9 -9 -9 -8 -8 -8 -7 -7 -7 -7 -6 -6 -6 -6 -6 -6 -5 -5 -5 -5 -4 -4 -4 -4 -3 -3 -3 -3 -2 -2 -2 -1 -1 -1 --------- Run | Scr Mat Min Mat Min Exi Min Mat Sto Fac Low Low Dat Pro Fac Ext Cet Arc Hub Fac Upp Upp Zhi Pro Fac Upp War Pro Res Arm Lab Res Tes Sec Acc Com Ac0 Distress Signals 41 | . . 1 4 . . . . 3 . . . . . . 3 . . . 1 . . . . 3 . . . 1 1 . 4 . . 1 19 . Communications Jammed 69 | . . . . . . . . . . . . . . . . . . . . . . . . . . . . 1 . . . . 10 56 2 . Distress Signals 68 | . . . . . . . . . . . . . . . . . . . . . . . . . . . . 1 . . . . 10 55 2 . Times Spotted 506 | . 2 22 28 2 5 9 12 39 22 . . 4 5 4 18 5 3 13 19 5 2 . 7 18 10 . 4 23 17 . 10 18 30 65 43 42 Peak Tracking Total 17 | . 1 3 3 2 5 4 4 5 6 . . 4 3 4 6 5 3 12 9 5 2 . 8 16 5 . 2 13 17 . 6 5 9 8 7 8 Tactical Retreats 57 | . . 2 . . 1 3 . 1 4 . . . . . 4 . . 1 3 1 1 . 1 2 3 . 2 2 1 . 2 4 5 7 4 3 Traps | -11 -10 -10 -9 -9 -9 -8 -8 -8 -7 -7 -7 -7 -6 -6 -6 -6 -6 -6 -5 -5 -5 -5 -4 -4 -4 -4 -3 -3 -3 -3 -2 -2 -2 -1 -1 -1 ------- Run | Scr Mat Min Mat Min Exi Min Mat Sto Fac Low Low Dat Pro Fac Ext Cet Arc Hub Fac Upp Upp Zhi Pro Fac Upp War Pro Res Arm Lab Res Tes Sec Acc Com Ac0 Traps Triggered 10 | . . . . . . . . 1 2 . . . . . 1 . . 1 . . . . . . . . . . 1 . . 1 1 1 1 . Indirectly 1 | . . . . . . . . . . . . . . . . . . 1 . . . . . . . . . . . . . . . . . . Trap Hack Attempts . | . . . . . . . . . . . . . . . . . . . . . . . . . . . . . . . . . . . . . Triggered . | . . . . . . . . . . . . . . . . . . . . . . . . . . . . . . . . . . . . . Disarmed . | . . . . . . . . . . . . . . . . . . . . . . . . . . . . . . . . . . . . . Reprogrammed 4 | . . . . . . . . . . . . . . . . . . . . . . . . . . . . . . . . . . 4 . . Reused . | . . . . . . . . . . . . . . . . . . . . . . . . . . . . . . . . . . . . . Traps Extracted . | . . . . . . . . . . . . . . . . . . . . . . . . . . . . . . . . . . . . . Installed . | . . . . . . . . . . . . . . . . . . . . . . . . . . . . . . . . . . . . . Triggered 12 | . . . . . . . . . . . . . . . . . . . . . . . . . . 11 1 . . . . . . . . . Machines | -11 -10 -10 -9 -9 -9 -8 -8 -8 -7 -7 -7 -7 -6 -6 -6 -6 -6 -6 -5 -5 -5 -5 -4 -4 -4 -4 -3 -3 -3 -3 -2 -2 -2 -1 -1 -1 ---------- Run | Scr Mat Min Mat Min Exi Min Mat Sto Fac Low Low Dat Pro Fac Ext Cet Arc Hub Fac Upp Upp Zhi Pro Fac Upp War Pro Res Arm Lab Res Tes Sec Acc Com Ac0 Machines Disabled 48 | . 1 . 1 . 4 . . 1 3 . . . . . 1 . 1 17 . . . . . . . . . . 4 1 . 3 3 1 1 6 Max in Single Turn 17 | . 1 . 1 . 2 . . 1 2 . . . . . 1 . 1 17 . . . . . . . . . . 1 1 . 1 1 1 1 1 Garrison Access 3 | . . . . . . . . 1 . . . . . . . . . . . . . . . . . . . . . . 1 . . 1 . . Network Hub 2 | . . . . . . . . . . . . . . . . . . 2 . . . . . . . . . . . . . . . . . . Energy Cycler 1 | . . . . . . . . . . . . . . . 1 . . . . . . . . . . . . . . . . . . . . . Machines Sabotaged 1 | . . . . . . . . . . . . . . . . . . 1 . . . . . . . . . . . . . . . . . . Garrisons Compromised . | . . . . . . . . . . . . . . . . . . . . . . . . . . . . . . . . . . . . . Overloaded Fab Kills . | . . . . . . . . . . . . . . . . . . . . . . . . . . . . . . . . . . . . . Fab Network Shutdowns 4 | . . . . . . . . . . . . . . . . . . . 1 . . . . . . . . . . . 1 1 . 1 . . Hacking | -11 -10 -10 -9 -9 -9 -8 -8 -8 -7 -7 -7 -7 -6 -6 -6 -6 -6 -6 -5 -5 -5 -5 -4 -4 -4 -4 -3 -3 -3 -3 -2 -2 -2 -1 -1 -1 --------- Run | Scr Mat Min Mat Min Exi Min Mat Sto Fac Low Low Dat Pro Fac Ext Cet Arc Hub Fac Upp Upp Zhi Pro Fac Upp War Pro Res Arm Lab Res Tes Sec Acc Com Ac0 Machines Accessed 137 | . 3 . 3 . 2 . 3 10 7 1 1 3 . 2 7 . . 1 9 . 1 4 . 6 . 3 . 7 6 . 5 11 16 14 12 . Terminals 85 | . 3 . 2 . . . 3 5 3 . . . . 1 7 . . 1 4 . . . . 4 . . . 5 3 . 1 8 13 11 11 . Fabricators 14 | . . . . . . . . . 1 . . . . 1 . . . . 2 . . . . 1 . . . 2 2 . 1 2 . 2 . . Repair Stations 8 | . . . . . . . . 2 . . . . . . . . . . 2 . . . . . . . . . 1 . . . 2 . 1 . Recycling Units 7 | . . . . . . . . 2 3 . . . . . . . . . 1 . . . . . . . . . . . 1 . . . . . Scanalyzers 4 | . . . 1 . . . . . . . . . . . . . . . . . . . . . . . . . . . 1 1 1 . . . Garrison Access 4 | . . . . . . . . 1 . . . . . . . . . . . . . . . 1 . . . . . . 1 . . 1 . . Total Hacks 646 | . 8 . 6 . 2 . 10 25 20 1 1 22 . 14 28 . . 6 71 . 1 17 . 55 . 7 . 47 32 . 29 71 67 70 36 . Successful 524 | . 3 . 4 . 2 . 9 20 7 1 1 22 . 10 22 . . 5 56 . 1 17 . 53 . 7 . 35 19 . 26 63 63 55 23 . Failed 121 | . 5 . 2 . . . 1 5 13 . . . . 4 6 . . 1 15 . . . . 2 . . . 12 13 . 3 7 4 15 13 . Catastrophic 12 | . . . 1 . . . . . 1 . . . . . . . . . . . . . . . . . . . 5 . . . . 4 1 . Database Lockouts 1 | . . . . . . . . . . . . . . . . . . . . . . . . . . . . . . . . 1 . . . . Manual 285 | . 6 . 3 . 1 . 7 8 20 . . . . 7 6 . . 6 26 . . . . 30 . 1 . 14 20 . 15 40 28 24 23 . Terminals 429 | . 8 . 3 . . . 10 18 12 . . . . 3 28 . . 6 41 . . . . 44 . . . 32 16 . 19 46 57 56 30 . Fabricators 108 | . . . . . . . . . 3 . . . . 11 . . . . 23 . . . . 7 . . . 15 12 . 6 18 . 13 . . Repair Stations 28 | . . . . . . . . 4 . . . . . . . . . . 5 . . . . . . . . . 4 . . . 9 . 6 . Recycling Units 10 | . . . . . . . . 2 5 . . . . . . . . . 2 . . . . . . . . . . . 1 . . . . . Scanalyzers 13 | . . . 3 . . . . . . . . . . . . . . . . . . . . . . . . . . . 2 7 1 . . . Garrison Access 7 | . . . . . . . . 1 . . . . . . . . . . . . . . . 4 . . . . . . 1 . . 1 . . Terminal Hacks 320 | . 3 . 2 . 2 . 6 11 2 1 1 22 . 2 19 . . 3 26 . 1 17 . 39 . 7 . 17 4 . 16 32 42 34 11 . Record 12 | . . . . . 1 . . . . . . 6 . . . . . . . . . 5 . . . . . . . . . . . . . . Part Schematic 37 | . . . 1 . . . . 1 1 . . 7 . 1 2 . . . 4 . . 4 . 7 . . . . 1 . 4 2 2 . . . Robot Schematic 9 | . . . . . . . . . . . . 6 . . . . . . . . . . . . . . . . . . . . 2 1 . . Robot Analysis 8 | . . . . . . . . . . . . . . . 2 . . . . . . 4 . . . . . . . . . . . 2 . . Prototype ID Bank 56 | . 1 . . . . . . 2 . . . 3 . . 1 . . . 2 . . 4 . 16 . 5 . . . . 1 8 9 3 1 . Open Door 20 | . . . . . . . . 2 . 1 1 . . . 4 . . . . . 1 . . . . 2 . . . . . 1 4 3 1 . Level Access Points 4 | . . . . . . . . . . . . . . . . . . 1 1 . . . . . . . . 1 . . . . 1 . . . Branch Access Points 9 | . . . 1 . . . 1 . 1 . . . . 1 . . . . 1 . . . . 1 . . . 1 . . 1 . . 1 . . Emergency Access Points 7 | . . . . . . . . . . . . . . . . . . . 1 . . . . 1 . . . 1 . . 1 . 2 1 . . Machine Index 7 | . . . . . . . . . . . . . . . . . . . 2 . . . . . . . . 1 1 . 1 . 1 . 1 . Terminal Index 7 | . . . . . . . 1 . . . . . . . 1 . . 1 . . . . . . . . . 1 . . . . 1 1 1 . Fabricator Index 1 | . . . . . . . . . . . . . . . . . . . . . . . . . . . . . . . . . 1 . . . Repair Station Index 1 | . . . . . . . . . . . . . . . . . . . . . . . . . . . . . . . . . . 1 . . Scanalyzer Index 2 | . . . . . . . 1 . . . . . . . . . . . . . . . . . . . . . . . . . . 1 . . Garrison Index 1 | . . . . . . . . . . . . . . . . . . . . . . . . . . . . 1 . . . . . . . . Alert Level 20 | . . . . . . . 1 4 . . . . . . 2 . . . 1 . . . . 1 . . . . . . 1 2 3 3 2 . Unreport Threat 32 | . . . . . . . . 2 . . . . . . 5 . . . 1 . . . . 1 . . . 1 . . 2 6 4 8 2 . Locate Traps 15 | . . . . . . . . . . . . . . . 1 . . . 2 . . . . 4 . . . 3 . . . . 2 2 1 . Disarm Traps 1 | . . . . . . . . . . . . . . . . . . . . . . . . . . . . . . . . . . 1 . . Reprogram Traps 1 | . . . . . . . . . . . . . . . . . . . . . . . . . . . . . . . . . . 1 . . Dispatch Records 1 | . . . . . . . . . . . . . . . . . . . . . . . . . . . . . . . . 1 . . . . Maintenance Status 5 | . . . . . . . . . . . . . . . . . . . 1 . . . . 1 . . . 1 . . 1 . 1 . . . Security Status 2 | . . . . . . . . . . . . . . . . . . . 1 . . . . . . . . . . . . . . 1 . . Patrol Status 13 | . 1 . . . . . 1 . . . . . . . . . . 1 2 . . . . 2 . . . 1 1 . 1 1 2 . . . Recall Investigation 2 | . . . . . . . . . . . . . . . . . . . 1 . . . . . . . . . . . 1 . . . . . Recall Extermination 3 | . . . . . . . . . . . . . . . . . . . 1 . . . . . . . . 1 . . . . 1 . . . Recall Reinforcements 2 | . . . . . . . . . . . . . . . . . . . . . . . . . . . . . . . . 1 1 . . . Recall Assault 1 | . . . . . . . . . . . . . . . . . . . . . . . . . . . . . . . . 1 . . . . Hauler Manifests 6 | . 1 . . . . . 1 . . . . . . . . . . . 1 . . . . 1 . . . . . . 1 . . 1 . . Registered Components 2 | . . . . . . . . . . . . . . . . . . . 1 . . . . 1 . . . . . . . . . . . . Registered Prototypes 7 | . . . . . . . . . . . . . . . . . . . 1 . . . . 1 . . . 1 1 . 1 . 1 1 . . Zone Layout 18 | . . . . . . . . . . . . . . . 1 . . . 2 . . . . 2 . . . 3 . . . 4 4 2 . . EX-Prototype ID Bank 1 | . . . . . 1 . . . . . . . . . . . . . . . . . . . . . . . . . . . . . . . Protovariant Controls 5 | . . . . . . . . . . . . . . . . . . . . . . . . . . . . . . . . 5 . . . . Disengage Seal 2 | . . . . . . . . . . . . . . . . . . . . . . . . . . . . . . . . . . . 2 . Fabricator Hacks 58 | . . . . . . . . . . . . . . 4 . . . . 13 . . . . 5 . . . 9 5 . 2 12 . 8 . . Load Schematic 20 | . . . . . . . . . . . . . . 2 . . . . 4 . . . . 1 . . . 3 2 . 1 5 . 2 . . Build 38 | . . . . . . . . . . . . . . 2 . . . . 9 . . . . 4 . . . 6 3 . 1 7 . 6 . . Repair Station Hacks 26 | . . . . . . . . 4 . . . . . . . . . . 5 . . . . . . . . . 4 . . . 9 . 4 . Scan Component 12 | . . . . . . . . 2 . . . . . . . . . . 2 . . . . . . . . . 2 . . . 4 . 2 . Repair 12 | . . . . . . . . 2 . . . . . . . . . . 2 . . . . . . . . . 2 . . . 4 . 2 . Refit 2 | . . . . . . . . . . . . . . . . . . . 1 . . . . . . . . . . . . . 1 . . . Recycling Unit Hacks 1 | . . . . . . . . . . . . . . . . . . . 1 . . . . . . . . . . . . . . . . . Report Inventory 1 | . . . . . . . . . . . . . . . . . . . 1 . . . . . . . . . . . . . . . . . Scanalyzer 12 | . . . 2 . . . . . . . . . . . . . . . . . . . . . . . . . . . 2 7 1 . . . Insert Component 7 | . . . 1 . . . . . . . . . . . . . . . . . . . . . . . . . . . 2 3 1 . . . Analyze 5 | . . . 1 . . . . . . . . . . . . . . . . . . . . . . . . . . . . 4 . . . . Garrison Access Hacks 3 | . . . . . . . . 1 . . . . . . . . . . . . . . . . . . . . . . 1 . . 1 . . Seal Access 3 | . . . . . . . . 1 . . . . . . . . . . . . . . . . . . . . . . 1 . . 1 . . Unauthorized Hacks 104 | . . . . . . . 3 4 5 . . . . 4 3 . . 2 11 . . . . 9 . . . 9 6 . 5 12 11 12 8 . Terminals 57 | . . . . . . . 3 2 1 . . . . . 3 . . 2 4 . . . . 3 . . . 5 1 . . 6 11 8 8 . Track 11 | . . . . . . . . . . . . . . . 1 . . . 1 . . . . . . . . . . . . 2 5 1 1 . Assimilate 17 | . . . . . . . . . 1 . . . . . . . . . 1 . . . . . . . . 2 . . . 1 3 5 4 . Botnet 15 | . . . . . . . 2 2 . . . . . . 1 . . . 1 . . . . 2 . . . . . . . 2 2 1 2 . Disrupt 2 | . . . . . . . . . . . . . . . . . . . . . . . . . . . . 2 . . . . . . . . Operators 11 | . . . . . . . 1 . . . . . . . 1 . . 1 1 . . . . 1 . . . 1 1 . . 1 1 1 1 . Sabotage 1 | . . . . . . . . . . . . . . . . . . 1 . . . . . . . . . . . . . . . . . . Fabricators 36 | . . . . . . . . . 1 . . . . 4 . . . . 6 . . . . 2 . . . 4 5 . 4 6 . 4 . . Report 5 | . . . . . . . . . . . . . . 1 . . . . 1 . . . . . . . . . 1 . 1 1 . . . . Prioritize 13 | . . . . . . . . . . . . . . 1 . . . . 2 . . . . 1 . . . 2 2 . 1 2 . 2 . . Siphon 13 | . . . . . . . . . . . . . . 1 . . . . 2 . . . . 1 . . . 2 2 . 1 2 . 2 . . Haulers 5 | . . . . . . . . . 1 . . . . 1 . . . . 1 . . . . . . . . . . . 1 1 . . . . Repair Stations . | . . . . . . . . . . . . . . . . . . . . . . . . . . . . . . . . . . . . . Recycling Units 7 | . . . . . . . . 2 3 . . . . . . . . . 1 . . . . . . . . . . . 1 . . . . . Tunnel 7 | . . . . . . . . 2 3 . . . . . . . . . 1 . . . . . . . . . . . 1 . . . . . Scanalyzers . | . . . . . . . . . . . . . . . . . . . . . . . . . . . . . . . . . . . . . Garrison Access 4 | . . . . . . . . . . . . . . . . . . . . . . . . 4 . . . . . . . . . . . . Broadcast 1 | . . . . . . . . . . . . . . . . . . . . . . . . 1 . . . . . . . . . . . . Reprogram 2 | . . . . . . . . . . . . . . . . . . . . . . . . 2 . . . . . . . . . . . . Watchers 1 | . . . . . . . . . . . . . . . . . . . . . . . . 1 . . . . . . . . . . . . Data Cores Recovered 2 | . . . . . . . . . . . . . . . . . . . . . . . . . . . . . . . . . . 1 1 . Used 1 | . . . . . . . . . . . . . . . . . . . . . . . . . . . . . . . . . . 1 . . Hacking Detections 68 | . 3 . 3 . . . 3 5 5 . . . . 2 2 . . . 2 . . . . 5 . . . 5 5 . 2 6 5 9 6 . Full Trace Events 5 | . 1 . . . . . . 1 2 . . . . . . . . . . . . . . . . . . . 1 . . . . . . . Feedback Events 3 | . 1 . . . . . . 1 . . . . . . . . . . . . . . . . . . . . 1 . . . . . . . Corruption 2 | . 1 . . . . . . 1 . . . . . . . . . . . . . . . . . . . . . . . . . . . . Hackware Fried 1 | . . . . . . . . . . . . . . . . . . . . . . . . . . . . . 1 . . . . . . . Feedback Blocked . | . . . . . . . . . . . . . . . . . . . . . . . . . . . . . . . . . . . . . Robot Schematics Acquired 9 | . . . . . . . . . . . . 6 . . . . . . . . . . . . . . . . . . . . 2 1 . . Robots Built . | . . . . . . . . . . . . . . . . . . . . . . . . . . . . . . . . . . . . . Matter . | . . . . . . . . . . . . . . . . . . . . . . . . . . . . . . . . . . . . . Time . | . . . . . . . . . . . . . . . . . . . . . . . . . . . . . . . . . . . . . Total Robot Build Rating . | . . . . . . . . . . . . . . . . . . . . . . . . . . . . . . . . . . . . . Part Schematics Acquired 41 | . . . 2 . . . . 1 1 . . 7 . 1 2 . . . 4 . . 4 . 7 . . . . 1 . 4 5 2 . . . Parts Built 38 | . . . . . . . . . . . . . . 2 . . . . 6 . . . . 4 . . . 5 7 . 1 4 . 9 . . Matter 6333 | . . . . . . . . . . . . . . 523 . . . . 790 . . . . 852 . . . 1065 415 . 417 1127 . 1144 . . Time 1734 | . . . . . . . . . . . . . . 118 . . . . 193 . . . . 190 . . . 342 87 . 222 337 . 245 . . Total Part Build Rating 211 | . . . . . . . . . . . . . . 11 . . . . 21 . . . . 20 . . . 25 13 . 9 31 . 81 . . Parts Repaired 12 | . . . . . . . . 2 . . . . . . . . . . 2 . . . . . . . . . 2 . . . 4 . 2 . Time 461 | . . . . . . . . 121 . . . . . . . . . . 84 . . . . . . . . . 80 . . . 124 . 52 . Parts Recycled . | . . . . . . . . . . . . . . . . . . . . . . . . . . . . . . . . . . . . . Recycled Matter . | . . . . . . . . . . . . . . . . . . . . . . . . . . . . . . . . . . . . . Retrieved Matter . | . . . . . . . . . . . . . . . . . . . . . . . . . . . . . . . . . . . . . Retrieved Components . | . . . . . . . . . . . . . . . . . . . . . . . . . . . . . . . . . . . . . Parts Scanalyzed 4 | . . . 1 . . . . . . . . . . . . . . . . . . . . . . . . . . . . 3 . . . . Part Schematics Acquired 4 | . . . 1 . . . . . . . . . . . . . . . . . . . . . . . . . . . . 3 . . . . Parts Damaged 1 | . . . 1 . . . . . . . . . . . . . . . . . . . . . . . . . . . . . . . . . Bothacking | -11 -10 -10 -9 -9 -9 -8 -8 -8 -7 -7 -7 -7 -6 -6 -6 -6 -6 -6 -5 -5 -5 -5 -4 -4 -4 -4 -3 -3 -3 -3 -2 -2 -2 -1 -1 -1 ------------ Run | Scr Mat Min Mat Min Exi Min Mat Sto Fac Low Low Dat Pro Fac Ext Cet Arc Hub Fac Upp Upp Zhi Pro Fac Upp War Pro Res Arm Lab Res Tes Sec Acc Com Ac0 Used RIF Installer . | . . . . . . . . . . . . . . . . . . . . . . . . . . . . . . . . . . . . . Robots Hacked 1 | . . . . . . . . . 1 . . . . . . . . . . . . . . . . . . . . . . . . . . . Non-combat 1 | . . . . . . . . . 1 . . . . . . . . . . . . . . . . . . . . . . . . . . . Combat . | . . . . . . . . . . . . . . . . . . . . . . . . . . . . . . . . . . . . . Robot Hacks Applied 1 | . . . . . . . . . 1 . . . . . . . . . . . . . . . . . . . . . . . . . . . find_chute 1 | . . . . . . . . . 1 . . . . . . . . . . . . . . . . . . . . . . . . . . . Relay Couplers Released . | . . . . . . . . . . . . . . . . . . . . . . . . . . . . . . . . . . . . . Robots Rewired 26 | . . . . . . . . . 1 . . . . . 8 . . . . . . . . 1 . 3 . . 13 . . . . . . . Allies Hacked 2 | . . . . . . . . . . . . . . . . . . . . . . . . . . . 1 . . . . . 1 . . . Hacks Repelled . | . . . . . . . . . . . . . . . . . . . . . . . . . . . . . . . . . . . . . Allies | -11 -10 -10 -9 -9 -9 -8 -8 -8 -7 -7 -7 -7 -6 -6 -6 -6 -6 -6 -5 -5 -5 -5 -4 -4 -4 -4 -3 -3 -3 -3 -2 -2 -2 -1 -1 -1 -------- Run | Scr Mat Min Mat Min Exi Min Mat Sto Fac Low Low Dat Pro Fac Ext Cet Arc Hub Fac Upp Upp Zhi Pro Fac Upp War Pro Res Arm Lab Res Tes Sec Acc Com Ac0 Total Allies 61 | . . . . . . . . 10 2 . . . 1 . 16 . . . 1 . . . . 3 . 3 . 2 13 . . 1 3 3 3 . Largest Group 12 | . . . . . . . . 10 2 . . . 1 . 12 1 . . 1 . . . . 3 . 3 3 1 8 . . 1 1 1 2 . Highest-Rated Group 473 | . . . . . . . . 173 42 . . . 7 . 473 31 . . 26 . . . . 128 . 179 179 65 405 . . 26 45 45 71 . Highest-Rated Ally 159 | . . . . . . . . 29 32 . . . 7 . 159 31 . . 26 . . . . 49 . 65 65 65 89 . . 26 45 45 45 . Total Orders 10 | . . . . . . . . 3 . . . . . . . . . . 2 . . . . . . . . 1 . . . . . 3 1 . STAY 5 | . . . . . . . . . . . . . . . . . . . 1 . . . . . . . . 1 . . . . . 2 1 . ROAM 3 | . . . . . . . . 3 . . . . . . . . . . . . . . . . . . . . . . . . . . . . FOLLOW 2 | . . . . . . . . . . . . . . . . . . . 1 . . . . . . . . . . . . . . 1 . . Ally Attacks 189 | . . . . . . . . 55 7 . . . 6 . 80 2 . . . . . . . 9 . . 4 . 26 . . . . . . . Total Damage 4305 | . . . . . . . . 666 201 . . . 15 . 2002 21 . . . . . . . 388 . . 116 . 896 . . . . . . . Kills 32 | . . . . . . . . 7 2 . . . . . 16 . . . . . . . . 1 . . . . 6 . . . . . . . Allies Corrupted 3 | . . . . . . . . . . . . . . . 1 . . . . . . . . . . . . . . . . . 1 . 1 . Allies Melted 1 | . . . . . . . . . . . . . . . 1 . . . . . . . . . . . . . . . . . . . . . Intel | -11 -10 -10 -9 -9 -9 -8 -8 -8 -7 -7 -7 -7 -6 -6 -6 -6 -6 -6 -5 -5 -5 -5 -4 -4 -4 -4 -3 -3 -3 -3 -2 -2 -2 -1 -1 -1 ------- Run | Scr Mat Min Mat Min Exi Min Mat Sto Fac Low Low Dat Pro Fac Ext Cet Arc Hub Fac Upp Upp Zhi Pro Fac Upp War Pro Res Arm Lab Res Tes Sec Acc Com Ac0 Robot Analysis Total 8 | . . . . . . . . . . . . . . . 2 . . . . . . 4 . . . . . . . . . . . 2 . . Derelict Logs Recovered 8 | . . . . . . . . . . 2 1 . 1 . . . . . . 2 . . 1 . 1 . . . . . . . . . . . Drone Launches . | . . . . . . . . . . . . . . . . . . . . . . . . . . . . . . . . . . . . . Drone Recoveries . | . . . . . . . . . . . . . . . . . . . . . . . . . . . . . . . . . . . . . Exploration | -11 -10 -10 -9 -9 -9 -8 -8 -8 -7 -7 -7 -7 -6 -6 -6 -6 -6 -6 -5 -5 -5 -5 -4 -4 -4 -4 -3 -3 -3 -3 -2 -2 -2 -1 -1 -1 ------------- Run | Scr Mat Min Mat Min Exi Min Mat Sto Fac Low Low Dat Pro Fac Ext Cet Arc Hub Fac Upp Upp Zhi Pro Fac Upp War Pro Res Arm Lab Res Tes Sec Acc Com Ac0 Turns Passed 24189 | 108 302 1354 1145 163 984 1132 605 4213 1348 150 157 50 101 195 746 43 67 29 565 183 84 52 79 298 239 301 427 364 363 128 290 576 621 1102 4503 1122 Spaces Moved 27463 | 31 211 464 568 94 525 846 194 1289 978 507 576 108 264 375 789 82 30 84 816 537 466 188 407 540 594 645 488 542 587 183 1109 1422 1687 1789 5695 1753 Core 14 | . . . . . . . . . . . . . . . . . . 5 9 . . . . . . . . . . . . . . . . . Treads 2938 | . . 237 521 94 525 78 194 1289 . . . . . . . . . . . . . . . . . . . . . . . . . . . . Legs 516 | 31 211 227 47 . . . . . . . . . . . . . . . . . . . . . . . . . . . . . . . . . Wheels 3 | . . . . . . 3 . . . . . . . . . . . . . . . . . . . . . . . . . . . . . . Hover 9139 | . . . . . . . . . . . . . . . . . . . . . . . . . . . . . . . . . . 1691 5695 1753 Flight 14853 | . . . . . . 765 . . 978 507 576 108 264 375 789 82 30 79 807 537 466 188 407 540 594 645 488 542 587 183 1109 1422 1687 98 . . Fastest Speed 15 | 120 120 120 120 160 160 37 160 252 26 26 26 26 26 23 23 23 23 23 18 18 18 18 18 15 20 20 20 16 19 19 19 19 19 28 32 24 Average Speed 48 | 120 120 140 156 160 160 48 194 256 26 26 26 26 26 24 23 23 23 25 23 18 18 18 18 17 20 20 21 19 19 19 19 19 19 36 36 34 Slowest Speed 460 | 120 200 160 200 160 160 440 260 460 166 26 26 26 26 26 23 23 23 50 50 18 18 21 18 21 22 20 25 22 19 19 19 19 84 93 140 113 Overloaded Moves 1089 | . . . . . . . . . . . . . . . . . . . . . . . . . . . . . . . . . . . . 1089 Propulsion Burnouts . | . . . . . . . . . . . . . . . . . . . . . . . . . . . . . . . . . . . . . Robots Hopped 132 | . . . . . . 10 . . 13 . 1 . 2 8 17 3 . 4 6 . . . 2 6 1 . . 21 1 . 10 15 12 . . . Cave-ins Triggered . | . . . . . . . . . . . . . . . . . . . . . . . . . . . . . . . . . . . . . Teleports 2 | . . . . . . . . . . . . . . . . . . . . . . . . . . . . . 1 . . . . . 1 . Exploration Rate (%) 55 | 3 29 61 46 20 67 93 19 93 20 69 80 80 49 16 77 61 62 20 24 72 65 61 52 20 78 91 70 28 35 92 29 95 77 37 87 60 Regions Visited 36 Branch Regions 26 Pre-discovered Areas 13 | . . . . . 1 . . 2 3 . . 1 1 . . . . . 1 . . 3 . . . . . . . . 1 . . . . . Known Exits Taken 14 | . . . 1 . . 1 1 . 1 . . . . 1 . . . 1 1 . . . 1 1 . . . 1 . 1 1 . 1 1 . . Unknown Exits Taken 22 | 1 1 1 . 1 1 . . 1 . 1 1 1 1 . 1 1 1 . . 1 1 1 . . 1 1 1 . 1 . . 1 . . 1 . Scrap Searched 21 | . . 1 . . . 1 . . . 1 3 . 1 . . . . . . 2 3 . 3 . 2 . 4 . . . . . . . . . Spaces Dug 80 | . 1 . 11 . . . . . 8 1 . . . 1 1 . . . 3 . . . . 8 2 2 . 4 2 . 1 6 9 8 12 . Terrain Destroyed 337 | . 2 . 16 . 35 . . 9 52 1 . . . 1 9 . . 154 3 . . . . 8 2 2 . 4 3 . 1 6 9 8 12 . Melee 66 | . . . . . . . . . 8 1 . . . 1 1 . . . 3 . . . . 8 2 2 . 4 . . 1 6 9 8 12 . Projectile 11 | . 2 . . . . . . 6 . . . . . . . . . . . . . . . . . . . . 3 . . . . . . . AOE 260 | . . . 16 . 35 . . 3 44 . . . . . 8 . . 154 . . . . . . . . . . . . . . . . . . Terrain Rammed . | . . . . . . . . . . . . . . . . . . . . . . . . . . . . . . . . . . . . . Walls Destroyed . | . . . . . . . . . . . . . . . . . . . . . . . . . . . . . . . . . . . . . Machines Disabled . | . . . . . . . . . . . . . . . . . . . . . . . . . . . . . . . . . . . . . Actions | -11 -10 -10 -9 -9 -9 -8 -8 -8 -7 -7 -7 -7 -6 -6 -6 -6 -6 -6 -5 -5 -5 -5 -4 -4 -4 -4 -3 -3 -3 -3 -2 -2 -2 -1 -1 -1 --------- Run | Scr Mat Min Mat Min Exi Min Mat Sto Fac Low Low Dat Pro Fac Ext Cet Arc Hub Fac Upp Upp Zhi Pro Fac Upp War Pro Res Arm Lab Res Tes Sec Acc Com Ac0 Total 37307 | 81 246 1057 788 103 615 1550 363 2002 2014 522 582 125 298 468 1333 102 79 84 1155 622 465 206 409 725 710 814 787 772 781 269 1170 1684 1896 2196 8076 2158 Wait 7684 | 30 15 455 103 . 19 670 100 499 945 . . . 26 93 506 24 39 . 300 85 . . 1 171 114 136 294 235 112 67 33 185 106 212 2070 39 Move 27183 | 31 210 463 567 93 524 825 193 1288 954 506 573 107 259 359 758 76 29 76 805 536 465 187 403 527 591 644 487 505 584 182 1088 1391 1662 1788 5694 1753 Hop 113 | . . . . . . 10 . . 10 . 1 . 2 7 13 2 . 3 4 . . . 1 6 1 . . 15 1 . 10 15 12 . . . Pick Up 222 | 2 6 16 23 1 7 4 11 21 7 3 1 5 1 . 6 . . . . 1 . 3 . 1 . . . . 3 4 5 2 11 15 38 25 Fast Attach 234 | 2 1 4 5 1 . 11 7 28 5 3 3 . . 3 3 . 1 2 13 . . 4 2 4 . 12 . 6 9 3 10 9 10 23 28 22 Attach 149 | . 2 6 7 . 8 3 1 5 12 2 . 2 1 3 3 . 1 1 4 . . 1 . 1 1 . 1 . 2 2 2 3 7 6 26 36 Detach 85 | . 1 4 3 1 1 4 3 2 2 2 . 1 . 2 3 . . 1 5 . . 1 . . 1 5 . 2 1 1 5 1 2 9 13 9 Swap 161 | 1 5 13 14 1 6 4 6 14 2 2 . 1 . . 2 . 1 . 3 . . 2 . 1 . . . 1 . 1 . 7 19 7 23 25 Drop 333 | 4 2 24 30 3 9 15 8 49 22 3 4 5 3 . 5 . 2 . 3 . . 8 2 3 . 7 . 4 5 3 8 11 9 24 48 10 Fire 354 | 11 4 65 28 3 36 4 31 85 14 . . . . . 3 . . . 13 . . . . 1 . . 5 . 33 6 . . . . 4 8 Melee 652 | . . . . . . . . . 23 1 . 4 6 1 1 . 6 1 5 . . . . 9 2 2 . 4 . . 9 60 58 112 117 231 Ram . | . . . . . . . . . . . . . . . . . . . . . . . . . . . . . . . . . . . . . Kick 2 | . . 2 . . . . . . . . . . . . . . . . . . . . . . . . . . . . . . . . . . Crush 30 | . . 5 8 . 5 . 3 9 . . . . . . . . . . . . . . . . . . . . . . . . . . . . Escape Stasis 40 | . . . . . . . . 2 18 . . . . . 7 . . . . . . . . . . . . . . . . . . . 13 . Rewire 65 | . . . . . . . . . . . . . . . 23 . . . . . . . . 1 . 8 . . 31 . . . . . 2 . Trap . | . . . . . . . . . . . . . . . . . . . . . . . . . . . . . . . . . . . . . Miscellaneous . | . . . . . . . . . . . . . . . . . . . . . . . . . . . . . . . . . . . . . Route ------- -11/Scrapyard -10/Materials -10/Mines (discovered 2 exits: *Mat x2) -9/Materials (discovered 2 exits: *Mat / *Min) -9/Mines (discovered 2 exits: *Mat / *Exi) -9/Exiles -8/Mines (discovered 2 exits: *Mat x2) -8/Materials (discovered 2 exits: *Sto x2) -8/Storage -7/Factory (discovered 2 exits: *Low x2) -7/Lower Caves -7/Lower Caves -7/Data Miner -6/Proximity Caves -6/Factory (discovered 5 exits: Fac / Low x2 / *Ext x2) -6/Extension (discovered 2 exits: *Fac / [*Cet]) -6/Cetus -6/Archives -6/Hub_04(d) (discovered 4 exits: *Fac x4) -5/Factory (discovered 6 exits: *Fac x4 / *Upp x2) -5/Upper Caves -5/Upper Caves -5/Zhirov -4/Proximity Caves -4/Factory (discovered 2 exits: *Upp x2) -4/Upper Caves -4/Warlord -3/Proximity Caves -3/Research (discovered 6 exits: Res x3 / *Arm / Qua x2) -3/Armory -3/Lab -2/Research (discovered 3 exits: *Acc / *Tes x2) -2/Testing (discovered 2 exits: *Acc / *Sec) -2/Section 7 -1/Access -1/Command (discovered 2 exits: [*Sur] / [*Ac0]) -1/Access_0 History --------- Turn | Location | Event 13 | -11/Scrapyard | Discovered new exit (range 2) 109 | -11/Scrapyard | Entered Materials 119 | -10/Materials | Discovered new exit (range 16) 311 | -10/Materials | Build established: Mutant 411 | -10/Materials | Entered Mines 930 | -10/Mines | Discovered new exit (range 11) 1050 | -10/Mines | Discovered new exit (range 9) 1129 | -10/Mines | Excavation squad dispatched 1129 | -10/Mines | A large section of the Mines collapsed 1351 | -10/Mines | Build established: Scavenger-Mutant 1379 | -10/Mines | Excavation squad dispatched 1439 | -10/Mines | Core integrity fell below 50% 1765 | -10/Mines | Entered Materials 1765 | -9/Materials | Evolved 2 slots: Weapon x2 2057 | -9/Materials | Build established: Scavenger-Gunner 2213 | -9/Materials | Discovered new exit (range 16) 2264 | -9/Materials | Identified exit to Materials 2670 | -9/Materials | Build established: Skirmisher 2881 | -9/Materials | Identified exit to Mines 2910 | -9/Materials | Entered Mines 3018 | -9/Mines | Discovered exit to Materials (range 12) 3041 | -9/Mines | Received a Rocket Launcher from a helpful Derelict 3050 | -9/Mines | Deemed a non-threat by the Exiles lab entrance 3050 | -9/Mines | Discovered new exit (range 5) 3073 | -9/Mines | Entered Exiles 3085 | -9/Exiles | Build established: Scavenger-Gunner 3113 | -9/Exiles | Met 8R-AWN 3139 | -9/Exiles | Met EX-HEX 3197 | -9/Exiles | Met EX-DEC 3222 | -9/Exiles | Learned location of Zion (-6) 3396 | -9/Exiles | Met EX-BIN 3420 | -9/Exiles | Aligned with FarCom system 3422 | -9/Exiles | Given EX-Vault access code 3462 | -9/Exiles | Opened EX-Vault 3497 | -9/Exiles | Warned to stay clear of 0b10 Research branches 3673 | -9/Exiles | Attacked by the Exiles 3760 | -9/Exiles | Destroyed 8R-AWN 3765 | -9/Exiles | Lost 4 parts (1n1u2w) 4027 | -9/Exiles | Discovered new exit (range 14) 4057 | -9/Exiles | Entered Mines 4249 | -8/Mines | 7V-RTL came to Exiles' defense 4345 | -8/Mines | Build established: Scavenger-Mutant 4423 | -8/Mines | Discovered exit to Materials (range 7) 4527 | -8/Mines | Discovered exit to Materials (range 7) 5189 | -8/Mines | Entered Materials 5189 | -8/Materials | Evolved 2 slots: Utility x2 5401 | -8/Materials | Identified exit to Storage 5470 | -8/Materials | Build established: Scavenger-Gunner 5794 | -8/Materials | Entered Storage 5924 | -8/Storage | Build established: Scavenger-Tank 7117 | -8/Storage | Build established: Tank 7247 | -8/Storage | Repaired Exp. Heat Sink 7441 | -8/Storage | Assisted by bots powering up and referring to "LRC-V3" 7819 | -8/Storage | Build established: Scavenger-Tank 8293 | -8/Storage | Garrison activated, responded to threat 8383 | -8/Storage | Discovered new exit (range 16) 8517 | -8/Storage | Repaired Imp. Treads 8576 | -8/Storage | Build established: Hacker-Gunner 10007 | -8/Storage | Entered Factory 10007 | -7/Factory | Evolved 2 slots: Propulsion x2 10083 | -7/Factory | Discovered new exit (range 15) 10111 | -7/Factory | Identified exit to Lower Caves 10156 | -7/Factory | Garrison activated, responded to threat 10320 | -7/Factory | Build established: Hacker-Sprinter 11355 | -7/Factory | Entered Lower Caves 11375 | -7/Lower Caves | Learned Factory security intel 11409 | -7/Lower Caves | Learned 8 Factory zone layouts 11499 | -7/Lower Caves | Discovered new exit (range 14) 11501 | -7/Lower Caves | Encountered a Warlord checkpoint 11505 | -7/Lower Caves | Entered another Lower Caves area 11570 | -7/Lower Caves | Encountered a Warlord checkpoint 11580 | -7/Lower Caves | Learned 4 Factory zone layouts 11600 | -7/Lower Caves | Discovered new exit (range 17) 11662 | -7/Lower Caves | Entered Data Miner 11662 | -7/Data Miner | Discovered new exit (range 6) 11663 | -7/Data Miner | Build established: Sprinter 11666 | -7/Data Miner | Met Data Miner 11672 | -7/Data Miner | Learned location of Section 7 (-2) 11672 | -7/Data Miner | Acquired the access code to Warlord's prototype stash 11676 | -7/Data Miner | Received God Mode back door access code from Data Miner 11686 | -7/Data Miner | Destroyed Data Miner 11689 | -7/Data Miner | Found Prototype Hackware 11692 | -7/Data Miner | Found Prototype Hackware 11693 | -7/Data Miner | Found Prototype Hackware 11694 | -7/Data Miner | Data Conduit disabled 11712 | -7/Data Miner | Entered Proximity Caves 11757 | -6/Proximity Caves | Spotted B-75 Beast 11812 | -6/Proximity Caves | Discovered new exit (range 3) 11813 | -6/Proximity Caves | Entered Factory 11813 | -6/Factory | Evolved 2 slots: Utility x2 11814 | -6/Factory | Identified exit to Factory 11814 | -6/Factory | Identified exit to Extension 11832 | -6/Factory | Identified System Mapper 11833 | -6/Factory | Identified Deep Network Scanner 11834 | -6/Factory | Identified Quantum Router 11835 | -6/Factory | Identified exit to Lower Caves 11885 | -6/Factory | Fabricated Exp. Utility Shielding (x1) 11929 | -6/Factory | Fabricated Exp. Cesium-ion Thruster (x1) 12008 | -6/Factory | Entered Extension 12023 | -6/Extension | Rescued a captive Derelict 12040 | -6/Extension | Rescued A7 12124 | -6/Extension | Rescued a captive Derelict 12125 | -6/Extension | Rescued a captive Derelict 12280 | -6/Extension | Spotted B-75 Beast 12281 | -6/Extension | Rescued a captive Derelict 12281 | -6/Extension | Rescued a captive Derelict 12499 | -6/Extension | Allies destroyed B-75 Beast 12511 | -6/Extension | Build established: Wizard-Sprinter 12516 | -6/Extension | Spotted B-75 Beast 12528 | -6/Extension | Extracted ID and sensor layout for unrecognized location from A7's data core 12569 | -6/Extension | Energy Cycler disabled 12570 | -6/Extension | Rescued a captive Derelict 12575 | -6/Extension | Rescued a captive Derelict 12659 | -6/Extension | Discovered exit to Factory (range 10) 12660 | -6/Extension | Discovered new exit (range 6) 12754 | -6/Extension | Entered Cetus 12754 | -6/Cetus | Accompanied by 1 ally 12775 | -6/Cetus | Spotted Cetus Guard 12775 | -6/Cetus | Spotted Cetus Guard 12775 | -6/Cetus | Spotted Cetus Guard 12775 | -6/Cetus | Spotted Cetus Guard 12793 | -6/Cetus | Discovered new exit (range 19) 12797 | -6/Cetus | Entered Archives 12861 | -6/Archives | Discovered new exit (range 13) 12864 | -6/Archives | Entered Hub_04(d) 12872 | -6/Hub_04(d) | Network Hub disabled 12875 | -6/Hub_04(d) | Network Hub disabled 12883 | -6/Hub_04(d) | Spotted Lightning 12884 | -6/Hub_04(d) | Spotted Lightning 12887 | -6/Hub_04(d) | Spotted Lightning 12887 | -6/Hub_04(d) | Spotted Lightning 12887 | -6/Hub_04(d) | Spotted Lightning 12887 | -6/Hub_04(d) | Spotted Lightning 12887 | -6/Hub_04(d) | Spotted Lightning 12888 | -6/Hub_04(d) | Spotted Lightning 12893 | -6/Hub_04(d) | Entered Factory 12893 | -5/Factory | Evolved 2 slots: Utility x2 12921 | -5/Factory | Lost 8 parts (1p5n2w) 12992 | -5/Factory | Fabricated Exp. Cesium-ion Thruster (x1) 13035 | -5/Factory | Fabricated Exp. Cesium-ion Thruster (x1) 13078 | -5/Factory | Fabricated Exp. Cesium-ion Thruster (x1) 13092 | -5/Factory | Identified exit to Factory 13092 | -5/Factory | Identified exit to Upper Caves 13190 | -5/Factory | Fabricated Lgt. Assault Rifle? 13288 | -5/Factory | Local fabrication network quarantined 13360 | -5/Factory | Repaired Exp. Utility Shielding 13405 | -5/Factory | Repaired Exp. Cesium-ion Thruster 13458 | -5/Factory | Entered Upper Caves 13472 | -5/Upper Caves | Learned Factory interactive machine intel 13525 | -5/Upper Caves | Spotted B-75 Beast 13634 | -5/Upper Caves | Discovered new exit (range 13) 13641 | -5/Upper Caves | Entered another Upper Caves area 13717 | -5/Upper Caves | Discovered new exit (range 16) 13725 | -5/Upper Caves | Entered Zhirov 13725 | -5/Zhirov | Discovered new exit (range 3) 13729 | -5/Zhirov | Met Zhirov 13734 | -5/Zhirov | Found Alien Artifact 13734 | -5/Zhirov | Identified Integrated Reactor 13734 | -5/Zhirov | Installed Integrated Reactor, increased core energy generation (+10) 13746 | -5/Zhirov | Found Alien Artifact 13771 | -5/Zhirov | Learned location of Testing (-2) 13771 | -5/Zhirov | Learned location of Command (-1) 13772 | -5/Zhirov | Zhirov requested help retrieving the SGEMP Prototype 13777 | -5/Zhirov | Entered Proximity Caves 13790 | -4/Proximity Caves | Attracted the attention of an 0b10 checkpoint 13810 | -4/Proximity Caves | Learned location of 1 exit from Research 13850 | -4/Proximity Caves | Discovered exit to Factory (range 18) 13856 | -4/Proximity Caves | Entered Factory 13856 | -4/Factory | Evolved 2 slots: Propulsion x2 13857 | -4/Factory | Identified exit to Upper Caves 13858 | -4/Factory | Loaded intel: 46 interactive machine locations 13969 | -4/Factory | Fabricated Biomechanical Wings? 14052 | -4/Factory | Fabricated Biomechanical Wings (x1) 14092 | -4/Factory | Fabricated Biomechanical Wings (x1) 14132 | -4/Factory | Fabricated Biomechanical Wings (x1) 14154 | -4/Factory | Entered Upper Caves 14160 | -4/Upper Caves | Encountered a Warlord checkpoint 14348 | -4/Upper Caves | A Derelict revealed a hidden shortcut to "reach the base" 14373 | -4/Upper Caves | Learned Research interactive machine intel 14393 | -4/Upper Caves | Entered Warlord 14439 | -4/Warlord | Found Prototype Launcher 14439 | -4/Warlord | Identified RU-N14's Throwing Claymores v3 14483 | -4/Warlord | Visited the Vortex Lab 14484 | -4/Warlord | Found Prototype Energy Cannon 14484 | -4/Warlord | Identified Vortex Driver 14491 | -4/Warlord | Warlord's base attacked by MAIN.C 14506 | -4/Warlord | Met Warlord 14509 | -4/Warlord | Opened Warlord's prototype stash 14510 | -4/Warlord | Found Prototype Device 14510 | -4/Warlord | Identified Thermal Barrier 14513 | -4/Warlord | Found Prototype Processor 14513 | -4/Warlord | Identified Exp. Target Analyzer 14515 | -4/Warlord | Found Prototype Processor 14515 | -4/Warlord | Identified Exp. Targeting Computer 14625 | -4/Warlord | Opened side exit 14653 | -4/Warlord | Discovered new exit (range 9) 14694 | -4/Warlord | Entered Proximity Caves 14694 | -3/Proximity Caves | Accompanied by 3 allies 14799 | -3/Proximity Caves | Attracted the attention of an 0b10 checkpoint 14818 | -3/Proximity Caves | Discovered new exit (range 7) 14840 | -3/Proximity Caves | P-80 Master assimilated allied PY-EKD(c) 14993 | -3/Proximity Caves | Received a Behemoth hack from an annoying Tinkerer 15121 | -3/Proximity Caves | Entered Research 15121 | -3/Research | Accompanied by 1 ally 15121 | -3/Research | Evolved 2 slots: Propulsion x2 15122 | -3/Research | Identified exit to Armory 15123 | -3/Research | Loaded intel: 38 interactive machine locations 15169 | -3/Research | Fabricated Exp. Propulsion Shielding (x1) 15230 | -3/Research | Fabricated Biomechanical Wings (x1) 15270 | -3/Research | Fabricated Biomechanical Wings (x1) 15308 | -3/Research | Fabricated Biomechanical Wings (x1) 15315 | -3/Research | Identified exit to Quarantine 15390 | -3/Research | Identified exit to Research 15400 | -3/Research | Fabricated Biomechanical Wings (x1) 15450 | -3/Research | Spotted B-86 Titan 15482 | -3/Research | Lost 4 parts (4w) 15485 | -3/Research | Entered Armory 15485 | -3/Armory | Accompanied by 1 ally 15495 | -3/Armory | Fabricated Lgt. Assault Rifle (x3) 15517 | -3/Armory | Fabricated Lgt. Assault Rifle (x3) 15535 | -3/Armory | Fabricated Imp. Fusion Compressor (x1) 15592 | -3/Armory | Repaired Exp. Utility Shielding 15634 | -3/Armory | Repaired Exp. Propulsion Shielding 15766 | -3/Armory | Imp. System Shield fried by hacking feedback 15770 | -3/Armory | Identified Transdimensional Reconstructor 15770 | -3/Armory | Warped through subspace to slip node 15770 | -3/Armory | Discovered new exit (range 1) 15845 | -3/Armory | Spotted B-86 Titan 15848 | -3/Armory | Entered Lab 15850 | -3/Lab | Discovered exit to Research (range 9) 15852 | -3/Lab | Hidden lab's door opened automatically 15852 | -3/Lab | Sensor layout match revealed 15888 | -3/Lab | Gained access to the hidden lab's interior 15894 | -3/Lab | Found Alien Artifact 15902 | -3/Lab | Found Alien Artifact 15902 | -3/Lab | Identified Integrated Dissipator 15902 | -3/Lab | Installed Integrated Dissipator, increased core heat dissipation (+20) 15909 | -3/Lab | Found Transdimensional Reconstructor 15916 | -3/Lab | Found Prototype Energy Cannon 15916 | -3/Lab | Identified Warp Cannon 15932 | -3/Lab | Found Deep Network Scanner 15965 | -3/Lab | Found Alien Artifact 15976 | -3/Lab | Entered Research 15976 | -2/Research | Warlord forces began assault on 0b10 15976 | -2/Research | Evolved 2 slots: Utility x2 15985 | -2/Research | Identified Core Expander 15985 | -2/Research | Identified Core Reset Matrix 15985 | -2/Research | Installed Core Expander, added new Power slot 15996 | -2/Research | Found Antimissile System 16001 | -2/Research | Met up with Warlord 16011 | -2/Research | Found Exp. Focal Shield 16018 | -2/Research | Found Nanosword 16025 | -2/Research | Discovered new exit (range 9) 16036 | -2/Research | Identified exit to Testing 16073 | -2/Research | Destroyed NN-6US(K) 16086 | -2/Research | Research machine network offline 16152 | -2/Research | Fabricated Femtoactuators (x1) 16182 | -2/Research | Local fabrication network quarantined 16191 | -2/Research | Found Prototype Slashing Weapon 16191 | -2/Research | Identified Particle Cleaver 16193 | -2/Research | Found Prototype Processor 16236 | -2/Research | Found Exp. System Shield 16266 | -2/Research | Entered Testing 16271 | -2/Testing | Identified Exp. Melee Analysis Suite 16449 | -2/Testing | Central database locked down 16449 | -2/Testing | Protovariant out of control (PH-9O2HTPDP17) 16449 | -2/Testing | Unleashed a protovariant (PH-9O2HTPDP17) 16454 | -2/Testing | Spotted Striker 16466 | -2/Testing | Found Prototype Protection 16473 | -2/Testing | Fabricated Nanosword? 16513 | -2/Testing | Fabricated Nanosword? 16553 | -2/Testing | Fabricated Nanosword (x1) 16554 | -2/Testing | Fabricated Exp. Melee Analysis Suite? 16562 | -2/Testing | First assault squad dispatched 16566 | -2/Testing | Local fabrication network quarantined 16677 | -2/Testing | Discovered new exit (range 16) 16762 | -2/Testing | Spotted Fortress 16777 | -2/Testing | Discovered new exit (range 5) 16842 | -2/Testing | Entered Section 7 16872 | -2/Section 7 | Identified exit to Access 16938 | -2/Section 7 | Found Alien Artifact 16999 | -2/Section 7 | Repaired Nanosword? 17006 | -2/Section 7 | Repaired Nanosword 17033 | -2/Section 7 | Repaired Exp. Utility Shielding 17059 | -2/Section 7 | Repaired Exp. Propulsion Shielding 17097 | -2/Section 7 | Identified Integrated Mediator 17098 | -2/Section 7 | Installed Integrated Mediator, increased core attachment efficiency. 17151 | -2/Section 7 | Spotted B-90 Cyclops 17169 | -2/Section 7 | Spotted Executioner 17169 | -2/Section 7 | Spotted Executioner 17176 | -2/Section 7 | Found Transdimensional Reconstructor 17185 | -2/Section 7 | Found Alien Artifact 17207 | -2/Section 7 | Spotted B-99 Colossus 17221 | -2/Section 7 | Found Alien Artifact 17222 | -2/Section 7 | Found Alien Artifact 17224 | -2/Section 7 | Identified LRC Storage 17224 | -2/Section 7 | Installed LRC Storage, increased inventory capacity (+2) 17225 | -2/Section 7 | Identified LRC Insulator 17225 | -2/Section 7 | Installed LRC Insulator, gained EM resistance (25) 17275 | -2/Section 7 | Found Alien Artifact 17396 | -2/Section 7 | Identified Matter Drive (x2) 17438 | -2/Section 7 | Spotted Alpha 7 17439 | -2/Section 7 | Spotted Alpha 7 17443 | -2/Section 7 | Lost 5 parts (2p2n1u) 17463 | -2/Section 7 | Entered Access 17463 | -1/Access | Evolved 2 slots: Utility x2 17500 | -1/Access | Fabricated Cmb. Linear Gravjet (x2) 17534 | -1/Access | Fabricated Cmb. Linear Gravjet (x2) 17568 | -1/Access | Fabricated Cmb. Linear Gravjet (x2) 17602 | -1/Access | Fabricated Cmb. Linear Gravjet (x2) 17779 | -1/Access | Found Prototype Slashing Weapon 17779 | -1/Access | Identified Vibroblade 17781 | -1/Access | Found Vibroblade 17891 | -1/Access | Fabricated Exp. Actuator Array? 17906 | -1/Access | Identified SHELL Armor 17915 | -1/Access | Found Antimissile System 17927 | -1/Access | Identified exit to Command 18260 | -1/Access | Local fabrication network quarantined 18346 | -1/Access | Build established: Machinist-Mutant 18378 | -1/Access | Found Prototype Reactor 18378 | -1/Access | Identified Vortex Chain Reactor 18463 | -1/Access | First assault squad dispatched 18565 | -1/Access | Entered Command 18597 | -1/Command | Repaired Exp. Utility Shielding 18626 | -1/Command | Repaired Exp. Propulsion Shielding 18692 | -1/Command | Spotted B-99 Colossus 18734 | -1/Command | Disengaged cave seal 18734 | -1/Command | Derelicts emerged from the dark tunnel 18734 | -1/Command | Welcomed Warlord to Command 19335 | -1/Command | Disengaged cave seal 19335 | -1/Command | Derelicts emerged from the dark tunnel 19836 | -1/Command | Spotted M Guard 19836 | -1/Command | Spotted M Guard 19836 | -1/Command | Spotted Combat Programmer 19849 | -1/Command | Spotted Combat Programmer 19878 | -1/Command | Destroyed Combat Programmer 19913 | -1/Command | All MAIN.C guards destroyed 19914 | -1/Command | Found Thermal Barrier 19916 | -1/Command | Found Thermal Barrier 20067 | -1/Command | 0b10 Conduit disabled 20067 | -1/Command | Met MAIN.C 20103 | -1/Command | MAIN.C activated Command garrisons 20132 | -1/Command | Destroyed MAIN.C 20136 | -1/Command | Found Beam Splitter 20163 | -1/Command | Build established: Machinist-Sprinter 20906 | -1/Command | Discovered new exit (range 10) 20921 | -1/Command | Spotted B-99 Colossus 21108 | -1/Command | Found Prototype Ballistic Gun 21108 | -1/Command | Identified Hyp. Multirail 21119 | -1/Command | Found System Purifier 21519 | -1/Command | Build established: Machinist-Mutant 21562 | -1/Command | Spotted Alpha 7 21590 | -1/Command | Destroyed Alpha 7 21713 | -1/Command | Spotted B-99 Colossus 22582 | -1/Command | Build established: Scavenger-Mutant 22672 | -1/Command | Found Prototype Reactor 22672 | -1/Command | Identified Zero-point Reactor 22674 | -1/Command | Found Vortex Chain Reactor 23045 | -1/Command | Warped through subspace to slip node 23045 | -1/Command | Discovered new exit (range 5) 23068 | -1/Command | Entered Access_0 23069 | -1/Access_0 | Met Architect 23100 | -1/Access_0 | Architect warped through subspace 23132 | -1/Access_0 | Destroyed A8 23245 | -1/Access_0 | Architect warped through subspace 23275 | -1/Access_0 | Lost 4 parts (1n3u) 23284 | -1/Access_0 | Architect warped through subspace 23296 | -1/Access_0 | Found Exp. Melee Analysis Suite 23298 | -1/Access_0 | Found Exp. Melee Analysis Suite 23307 | -1/Access_0 | Found Exp. Melee Analysis Suite 23327 | -1/Access_0 | Found Exp. Melee Analysis Suite 23343 | -1/Access_0 | Architect warped through subspace 23384 | -1/Access_0 | Architect warped through subspace 23398 | -1/Access_0 | A6 warped into view 23431 | -1/Access_0 | Architect warped through subspace 23462 | -1/Access_0 | Architect warped through subspace 23476 | -1/Access_0 | Destroyed A6 23477 | -1/Access_0 | Lost 5 parts (1p3n1w) 23497 | -1/Access_0 | Found Prototype Processor 23540 | -1/Access_0 | Subspace Access Node disabled 23550 | -1/Access_0 | Architect warped through subspace 23573 | -1/Access_0 | Identified Exp. Signal Interpreter 23602 | -1/Access_0 | Architect warped through subspace 23673 | -1/Access_0 | Architect warped through subspace 23711 | -1/Access_0 | Architect warped through subspace 23723 | -1/Access_0 | Found Exp. Phase Shifter 23734 | -1/Access_0 | A5 warped into view 23744 | -1/Access_0 | Destroyed A5 23747 | -1/Access_0 | Architect warped through subspace 23780 | -1/Access_0 | Found Alien Artifact 23792 | -1/Access_0 | Architect warped through subspace 23798 | -1/Access_0 | Subspace Access Node disabled 23838 | -1/Access_0 | Architect warped through subspace 23856 | -1/Access_0 | Found Exp. Melee Analysis Suite 23875 | -1/Access_0 | Architect warped through subspace 23925 | -1/Access_0 | Architect warped through subspace 23950 | -1/Access_0 | A4 warped into view 23975 | -1/Access_0 | Core integrity fell below 50% 23983 | -1/Access_0 | Architect warped through subspace 23989 | -1/Access_0 | Found Integrated Dissipator 23989 | -1/Access_0 | Installed Integrated Dissipator, increased core heat dissipation (+20) 24036 | -1/Access_0 | Architect warped through subspace 24041 | -1/Access_0 | Subspace Access Node disabled 24067 | -1/Access_0 | Architect warped through subspace 24113 | -1/Access_0 | Subspace Access Node disabled 24163 | -1/Access_0 | Core integrity fell below 20% 24186 | -1/Access_0 | Identified Integrity Redistributor 24186 | -1/Access_0 | Used Integrity Redistributor, redistributed integrity to core (+27) 24190 | -1/Access_0 | Destroyed by Architect with Modified Quantum Sheargun Last Messages --------------- 24169_ Exp. Melee Analysis Suite destroyed. 24169_ Microactuators destroyed. 24170_ Architect regenerates Enh. Optical Array. 24171_ Penetrated by Quantum Shear. 24174_ Vibroblade destroyed. 24176_ Warp Cannon severed. 24178_ Exp. Gyrokinetic Inverter destroyed. 24178_ Penetrated by Quantum Shear. 24178_ Femtoactuators destroyed. 24178_ Penetrated by Quantum Shear. 24178_ Exp. Power Amplifier destroyed. 24180_ Acquired Nanosword. 24181_ Penetrated by Quantum Shear. 24183_ Cmb. Antigrav System destroyed. 24185_ Penetrated by Quantum Shear. 24185_ Quantum Shear penetrates Wall. 24186_ Identified Integrity Redistributor. 24186_ Integrity redistributed to core (+27). 24188_ Nanosword severed. 24188_ Penetrated by Quantum Shear. Map ----- +----------------------------------------------------+ | "# #???# ## #?# ## ##???????????? | | #???#### ?# ?# "# #???????????? | | ##?####?##? ?# #????????????????? | | ##??# ##??? ## "# #????????????????? | | #???? #??? ### ##? ##????????????????? | | #????# ##??##### #???#?#?????????????????? | | # #????# #?????" #??#### ?????????????? | | # ###### ######" ## #???????????? | | ## ## ## "##" #???????????? | | ?## "#"" #????????????????? | | ?#"" ## ##????????????????? | | ?# " ## #?? ##?????????????????? | | ?### """ ######???#??????????????????? | | ?# "#""" ###???????????????????????????? | | ?# ## ## ####?????????????????????????????? | | ?## ### #????????????????????????????????? | | ??## #?# #????????????????????????????????? | | ???# #?# ##????????????????????????????????? | | ???# ##?#####??????????????##?????????????????? | | ???# ##????????????????????# #?????????????????? | | ???# #???????????????????##;#??????????????????? | | #### #??????????????????## #??????????????????? | | # "##?????????????????##; ##?????????????????? | | ## ######""#############; ##### ????????? | | ?## 0] "" ;; ???????? | | ??## =@ "" ##??????????????? | | ???## ####"#####;;;#;;; "###???????????????? | | ????# #????????##??# ;;; ;;#????????????????? | | ????# #????????????# ### #;; ## ???????????? | | ????#######????????????# #?##;;####? ???????????? | | ???????????????????????# #???# #?? ? ??????????? | | ???????????????????????# #????# #?# ? ??????????? | | ???????????????????????# #?????# ## ?????????## | | ???????????????????????# #??????#; # ##???????# | | ???????????????????????# ???????? #?????? | | ????????????????????????"????????? ?????? | | ???????????????????????? ?????????? ;? #??????? | | ???????????????????????? ?????????????# ###????? | | ???????????????????????? ????????????## #####?# | | ???????????????????????? ? ???????# #?# | | ???????????????????????? ? #?????# #?# | | ?????????????????????????? #### #?# | | ???????????????????????????????# ## ###" | | ???????????????????????????????## ##????# | | ????????????????????????????????######## ####### | | ???????????????????????????????????##### ## | | ???????????????????????????????????# #" | | ???????????????????????????????????# ##### """ | | ???????????????????????????????????# # "# | | ???????????????????????????????????# # # # | +----------------------------------------------------+ Best States ------------- Heat Dissipation 92 Energy Generation 85 Energy Capacity 700 Matter Stores 300 Matter Capacity 500 Sight Range 20 Robot Scan Range 16 Terrain Scan Range 24 Terrain Scan Density 85 Jamming Range 16 Power Amplification 40 Additional Mass Support 25 Armor Coverage 1500 Resistance: KI 30 Resistance: TH 75 Resistance: EM 25 Power Shielding 90 Propulsion Shielding 90 Utility Shielding 90 Weapon Shielding 66 Point Defense Rating 400 Melee Speed Boost 50 Phase Shifting 20 Evasion (%) 92 Targeting Accuracy 10 Melee Accuracy 60 Recoil Reduction 2 Offensive Hacking 84 Defensive Hacking 49 Item Schematics ----------------- Arm. Wheel | -9/Materials | Scanalyzed Lgt. Assault Rifle | -9/Materials | Hacked Lrn. Tractor Beam | -8/Storage | Hacked Arm. Treads | -7/Factory | Hacked Combat Drone Bay | -7/Data Miner | Free Lgt. Regenerative Plating | -7/Data Miner | Free Exp. Cesium-ion Thruster | -7/Data Miner | Free Triangulator | -7/Data Miner | Free Exp. Sensor Array | -7/Data Miner | Free Exp. Transmission Jammer | -7/Data Miner | Free Plasma Sword | -7/Data Miner | Free Exp. Utility Shielding | -6/Factory | Hacked Carbide Saw | -6/Extension | Hacked Imp. Linear Gravjet | -6/Extension | Hacked Biomechanical Wings | -5/Factory | Hacked Imp. Fusion Compressor | -5/Factory | Hacked Exp. Propulsion Shielding | -5/Factory | Hacked Adv. Datajack | -5/Factory | Hacked Assault Drone Bay | -5/Zhirov | Free Exp. Heat Sink | -5/Zhirov | Free Exp. Optical Array | -5/Zhirov | Free Imp. Arc Thrower | -5/Zhirov | Free Adv. Reaction Control System | -4/Factory | Hacked Hvy. Siege Treads | -4/Factory | Hacked Imp. Gyrokinetic Inverter | -4/Factory | Hacked Dispersion Rifle | -4/Factory | Hacked Adv. Transmission Jammer | -4/Factory | Hacked Adv. Cryofiber Web | -4/Factory | Hacked Impulse Thruster | -4/Factory | Hacked Nanosword | -3/Armory | Hacked Femtoactuators | -2/Research | Hacked Quantum Reactor | -2/Research | Hacked Biometal Heavy Treads | -2/Research | Hacked Centrium Leg | -2/Research | Hacked Exp. Melee Analysis Suite | -2/Testing | Hacked Exp. Actuator Array | -2/Testing | Hacked Exp. Power Shielding | -2/Testing | Scanalyzed Imp. Weapon Shielding | -2/Testing | Scanalyzed Exp. Focal Shield | -2/Testing | Scanalyzed Enh. Nova Cannon | -2/Section 7 | Hacked Cmb. Linear Gravjet | -2/Section 7 | Hacked Robot Schematics ------------------ S-27 Virus | -7/Data Miner | Free G-50 Soldier | -7/Data Miner | Free G-67 Veteran | -7/Data Miner | Free L-41 Fighter | -7/Data Miner | Free I-36 Angel | -7/Data Miner | Free I-47 Archangel | -7/Data Miner | Free S-43 Plague | -2/Section 7 | Hacked R-10 Processor | -2/Section 7 | Hacked K-01 Serf | -1/Access | Hacked Fabricated ------------ Exp. Utility Shielding | x1 | -6/Factory Exp. Cesium-ion Thruster | x1 | -6/Factory Exp. Cesium-ion Thruster | x1 | -5/Factory Exp. Cesium-ion Thruster | x1 | -5/Factory Exp. Cesium-ion Thruster | x1 | -5/Factory Lgt. Assault Rifle | x3 | -5/Factory Biomechanical Wings | x1 | -4/Factory Biomechanical Wings | x1 | -4/Factory Biomechanical Wings | x1 | -4/Factory Biomechanical Wings | x1 | -4/Factory Exp. Propulsion Shielding | x1 | -3/Research Biomechanical Wings | x1 | -3/Research Biomechanical Wings | x1 | -3/Research Biomechanical Wings | x1 | -3/Research Biomechanical Wings | x1 | -3/Research Lgt. Assault Rifle | x3 | -3/Armory Lgt. Assault Rifle | x3 | -3/Armory Imp. Fusion Compressor | x1 | -3/Armory Femtoactuators | x1 | -2/Research Nanosword | x1 | -2/Testing Nanosword | x1 | -2/Testing Nanosword | x1 | -2/Testing Exp. Melee Analysis Suite | x1 | -2/Testing Cmb. Linear Gravjet | x2 | -1/Access Cmb. Linear Gravjet | x2 | -1/Access Cmb. Linear Gravjet | x2 | -1/Access Cmb. Linear Gravjet | x2 | -1/Access Exp. Actuator Array | x1 | -1/Access Alien Tech Used ----------------- Integrated Reactor Transdimensional Reconstructor Integrated Dissipator Core Expander Integrated Mediator LRC Storage LRC Insulator Matter Drive Integrity Redistributor Achievements -------------- None Challenges ------------ None Game ------ Seed NuclearSmartbombCloak Manual? 0 Play Time 04:03:18 Cumulative 2264.6 hours Start 2021.09.29 @ 12:55:52 End 2021.09.30 @ 18:18:01 Sessions 7 Manual Loads 0 Difficulty Rogue Special Mode None Game No. 2696 Rogue 2688 Adventurer 0 Explorer 8 Win Type - Total 262 Types 47/32/95/3/3/5/74/2/1 Lore% 99 Gallery% 99 Achievement% 100 Wizard Run 0 Options --------- ASCII 0 Keyboard 1 Movement Vi Keybinds 1 Fullscreen 1 Font 18/SmallcapsGlow Map View 76x50 Tactical HUD 1 Map Filters NONE Filters NONE Steam 1 RUN: 06b3aa98-08e3-4439-9ff3-02437ecf4e9c